Workbook

Sheet Combination lines
A1: Combi | B1: Brandline | C1: Qty | D1: Type | E1: Gross | F1: Discount code | G1: Disctount | H1: Nett price
A2: 350 | B2: 118210 | C2: 1 | D2: Normal | E2: €1,562.81 | F2: A015 | G2: =IFERROR(VLOOKUP(F2,Discounts!A:C,3,0),0) -> 0 | H2: =IF(D2="Normal",E2*(1-G2),SUMIF(A:A,B2,H:H)*C2) -> €1,562.81
A3: 350 | B3: 134070 | C3: 1 | D3: Normal | E3: 0 | F3: LUXE | G3: =IFERROR(VLOOKUP(F3,Discounts!A:C,3,0),0) -> 0 | H3: 0
A4: 370 | B4: 118220 | C4: 1 | D4: Normal | E4: €1,562.81 | F4: A015 | G4: =IFERROR(VLOOKUP(F4,Discounts!A:C,3,0),0) -> 0 | H4: €1,562.81
A5: 370 | B5: 134070 | C5: 1 | D5: Normal | E5: 0 | F5: LUXE | G5: =IFERROR(VLOOKUP(F5,Discounts!A:C,3,0),0) -> 0 | H5: 0
A6: 390 | B6: 118230 | C6: 1 | D6: Normal | E6: €1,562.81 | F6: A015 | G6: =IFERROR(VLOOKUP(F6,Discounts!A:C,3,0),0) -> 0 | H6: €1,562.81
A7: 390 | B7: 134070 | C7: 1 | D7: Normal | E7: 0 | F7: LUXE | G7: =IFERROR(VLOOKUP(F7,Discounts!A:C,3,0),0) -> 0 | H7: 0
A8: 410 | B8: 118240 | C8: 1 | D8: Normal | E8: €1,562.81 | F8: A015 | G8: =IFERROR(VLOOKUP(F8,Discounts!A:C,3,0),0) -> 0 | H8: €1,562.81
A9: 410 | B9: 134070 | C9: 1 | D9: Normal | E9: 0 | F9: LUXE | G9: =IFERROR(VLOOKUP(F9,Discounts!A:C,3,0),0) -> 0 | H9: 0
A10: 430 | B10: 118250 | C10: 1 | D10: Normal | E10: €1,562.81 | F10: A015 | G10: =IFERROR(VLOOKUP(F10,Discounts!A:C,3,0),0) -> 0 | H10: €1,562.81
A11: 430 | B11: 134070 | C11: 1 | D11: Normal | E11: 0 | F11: LUXE | G11: =IFERROR(VLOOKUP(F11,Discounts!A:C,3,0),0) -> 0 | H11: 0
A12: 450 | B12: 118260 | C12: 1 | D12: Normal | E12: €1,562.81 | F12: A015 | G12: =IFERROR(VLOOKUP(F12,Discounts!A:C,3,0),0) -> 0 | H12: €1,562.81
A13: 450 | B13: 134070 | C13: 1 | D13: Normal | E13: 0 | F13: LUXE | G13: =IFERROR(VLOOKUP(F13,Discounts!A:C,3,0),0) -> 0 | H13: 0
A14: 470 | B14: 118270 | C14: 1 | D14: Normal | E14: €2,432.23 | F14: A015 | G14: =IFERROR(VLOOKUP(F14,Discounts!A:C,3,0),0) -> 0 | H14: €2,432.23
A15: 470 | B15: 134070 | C15: 1 | D15: Normal | E15: 0 | F15: LUXE | G15: =IFERROR(VLOOKUP(F15,Discounts!A:C,3,0),0) -> 0 | H15: 0
A16: 490 | B16: 118280 | C16: 1 | D16: Normal | E16: €2,324.79 | F16: A015 | G16: =IFERROR(VLOOKUP(F16,Discounts!A:C,3,0),0) -> 0 | H16: €2,324.79
A17: 490 | B17: 134070 | C17: 1 | D17: Normal | E17: 0 | F17: LUXE | G17: =IFERROR(VLOOKUP(F17,Discounts!A:C,3,0),0) -> 0 | H17: 0
A18: 510 | B18: 118290 | C18: 1 | D18: Normal | E18: €2,422.31 | F18: A015 | G18: =IFERROR(VLOOKUP(F18,Discounts!A:C,3,0),0) -> 0 | H18: €2,422.31
A19: 510 | B19: 134070 | C19: 1 | D19: Normal | E19: 0 | F19: LUXE | G19: =IFERROR(VLOOKUP(F19,Discounts!A:C,3,0),0) -> 0 | H19: 0
A20: 530 | B20: 118300 | C20: 1 | D20: Normal | E20: €2,130.58 | F20: A015 | G20: =IFERROR(VLOOKUP(F20,Discounts!A:C,3,0),0) -> 0 | H20: €2,130.58
A21: 530 | B21: 134070 | C21: 1 | D21: Normal | E21: 0 | F21: LUXE | G21: =IFERROR(VLOOKUP(F21,Discounts!A:C,3,0),0) -> 0 | H21: 0
A22: 550 | B22: 118310 | C22: 1 | D22: Normal | E22: €2,023.14 | F22: A015 | G22: =IFERROR(VLOOKUP(F22,Discounts!A:C,3,0),0) -> 0 | H22: €2,023.14
A23: 550 | B23: 134070 | C23: 1 | D23: Normal | E23: 0 | F23: LUXE | G23: =IFERROR(VLOOKUP(F23,Discounts!A:C,3,0),0) -> 0 | H23: 0
A24: 570 | B24: 118320 | C24: 1 | D24: Normal | E24: €2,114.88 | F24: A015 | G24: =IFERROR(VLOOKUP(F24,Discounts!A:C,3,0),0) -> 0 | H24: €2,114.88
A25: 570 | B25: 134070 | C25: 1 | D25: Normal | E25: 0 | F25: LUXE | G25: =IFERROR(VLOOKUP(F25,Discounts!A:C,3,0),0) -> 0 | H25: 0
A26: 590 | B26: 118330 | C26: 1 | D26: Normal | E26: €1,594.21 | F26: A015 | G26: =IFERROR(VLOOKUP(F26,Discounts!A:C,3,0),0) -> 0 | H26: €1,594.21
A27: 590 | B27: 134070 | C27: 1 | D27: Normal | E27: 0 | F27: LUXE | G27: =IFERROR(VLOOKUP(F27,Discounts!A:C,3,0),0) -> 0 | H27: 0
A28: 610 | B28: 118340 | C28: 1 | D28: Normal | E28: €1,594.21 | F28: A015 | G28: =IFERROR(VLOOKUP(F28,Discounts!A:C,3,0),0) -> 0 | H28: €1,594.21
A29: 610 | B29: 134070 | C29: 1 | D29: Normal | E29: 0 | F29: LUXE | G29: =IFERROR(VLOOKUP(F29,Discounts!A:C,3,0),0) -> 0 | H29: 0
A30: 630 | B30: 118350 | C30: 1 | D30: Normal | E30: €1,594.21 | F30: A015 | G30: =IFERROR(VLOOKUP(F30,Discounts!A:C,3,0),0) -> 0 | H30: €1,594.21
A31: 630 | B31: 134070 | C31: 1 | D31: Normal | E31: 0 | F31: LUXE | G31: =IFERROR(VLOOKUP(F31,Discounts!A:C,3,0),0) -> 0 | H31: 0
A32: 650 | B32: 118360 | C32: 1 | D32: Normal | E32: €1,885.95 | F32: A015 | G32: =IFERROR(VLOOKUP(F32,Discounts!A:C,3,0),0) -> 0 | H32: €1,885.95
A33: 650 | B33: 134070 | C33: 1 | D33: Normal | E33: 0 | F33: LUXE | G33: =IFERROR(VLOOKUP(F33,Discounts!A:C,3,0),0) -> 0 | H33: 0
A34: 670 | B34: 118370 | C34: 1 | D34: Normal | E34: €1,990.08 | F34: A015 | G34: =IFERROR(VLOOKUP(F34,Discounts!A:C,3,0),0) -> 0 | H34: €1,990.08
A35: 670 | B35: 134070 | C35: 1 | D35: Normal | E35: 0 | F35: LUXE | G35: =IFERROR(VLOOKUP(F35,Discounts!A:C,3,0),0) -> 0 | H35: 0
A36: 690 | B36: 118380 | C36: 1 | D36: Normal | E36: €2,233.06 | F36: A015 | G36: =IFERROR(VLOOKUP(F36,Discounts!A:C,3,0),0) -> 0 | H36: €2,233.06
A37: 690 | B37: 134070 | C37: 1 | D37: Normal | E37: 0 | F37: LUXE | G37: =IFERROR(VLOOKUP(F37,Discounts!A:C,3,0),0) -> 0 | H37: 0
A38: 710 | B38: 118390 | C38: 1 | D38: Normal | E38: €2,331.40 | F38: A015 | G38: =IFERROR(VLOOKUP(F38,Discounts!A:C,3,0),0) -> 0 | H38: €2,331.40
A39: 710 | B39: 134070 | C39: 1 | D39: Normal | E39: 0 | F39: LUXE | G39: =IFERROR(VLOOKUP(F39,Discounts!A:C,3,0),0) -> 0 | H39: 0
A40: 730 | B40: 134070 | C40: 1 | D40: Normal | E40: 0 | F40: LUXE | G40: =IFERROR(VLOOKUP(F40,Discounts!A:C,3,0),0) -> 0 | H40: 0
A41: 730 | B41: 134090 | C41: 1 | D41: Normal | E41: €2,490.91 | F41: A010 | G41: =IFERROR(VLOOKUP(F41,Discounts!A:C,3,0),0) -> 0 | H41: €2,490.91
A42: 750 | B42: 134070 | C42: 1 | D42: Normal | E42: 0 | F42: LUXE | G42: =IFERROR(VLOOKUP(F42,Discounts!A:C,3,0),0) -> 0 | H42: 0
A43: 750 | B43: 134100 | C43: 1 | D43: Normal | E43: €2,689.26 | F43: A010 | G43: =IFERROR(VLOOKUP(F43,Discounts!A:C,3,0),0) -> 0 | H43: €2,689.26
A44: 770 | B44: 134070 | C44: 1 | D44: Normal | E44: 0 | F44: LUXE | G44: =IFERROR(VLOOKUP(F44,Discounts!A:C,3,0),0) -> 0 | H44: 0
A45: 770 | B45: 134110 | C45: 1 | D45: Normal | E45: €2,643.80 | F45: A010 | G45: =IFERROR(VLOOKUP(F45,Discounts!A:C,3,0),0) -> 0 | H45: €2,643.80
A46: 790 | B46: 118400 | C46: 1 | D46: Normal | E46: €1,911.57 | F46: A010 | G46: =IFERROR(VLOOKUP(F46,Discounts!A:C,3,0),0) -> 0 | H46: €1,911.57
A47: 790 | B47: 134070 | C47: 1 | D47: Normal | E47: 0 | F47: LUXE | G47: =IFERROR(VLOOKUP(F47,Discounts!A:C,3,0),0) -> 0 | H47: 0
A48: 810 | B48: 118410 | C48: 1 | D48: Normal | E48: €1,953.72 | F48: A010 | G48: =IFERROR(VLOOKUP(F48,Discounts!A:C,3,0),0) -> 0 | H48: €1,953.72
A49: 810 | B49: 134070 | C49: 1 | D49: Normal | E49: 0 | F49: LUXE | G49: =IFERROR(VLOOKUP(F49,Discounts!A:C,3,0),0) -> 0 | H49: 0
A50: 830 | B50: 118420 | C50: 1 | D50: Normal | E50: €1,842.15 | F50: A010 | G50: =IFERROR(VLOOKUP(F50,Discounts!A:C,3,0),0) -> 0 | H50: €1,842.15
A51: 830 | B51: 134070 | C51: 1 | D51: Normal | E51: 0 | F51: LUXE | G51: =IFERROR(VLOOKUP(F51,Discounts!A:C,3,0),0) -> 0 | H51: 0
A52: 850 | B52: 118430 | C52: 1 | D52: Normal | E52: €1,750.41 | F52: A010 | G52: =IFERROR(VLOOKUP(F52,Discounts!A:C,3,0),0) -> 0 | H52: €1,750.41
A53: 850 | B53: 134070 | C53: 1 | D53: Normal | E53: 0 | F53: LUXE | G53: =IFERROR(VLOOKUP(F53,Discounts!A:C,3,0),0) -> 0 | H53: 0
A54: 870 | B54: 118440 | C54: 1 | D54: Normal | E54: €1,971.90 | F54: A010 | G54: =IFERROR(VLOOKUP(F54,Discounts!A:C,3,0),0) -> 0 | H54: €1,971.90
A55: 870 | B55: 134070 | C55: 1 | D55: Normal | E55: 0 | F55: LUXE | G55: =IFERROR(VLOOKUP(F55,Discounts!A:C,3,0),0) -> 0 | H55: 0
A56: 890 | B56: 118450 | C56: 1 | D56: Normal | E56: €1,659.50 | F56: A010 | G56: =IFERROR(VLOOKUP(F56,Discounts!A:C,3,0),0) -> 0 | H56: €1,659.50
A57: 890 | B57: 134070 | C57: 1 | D57: Normal | E57: 0 | F57: LUXE | G57: =IFERROR(VLOOKUP(F57,Discounts!A:C,3,0),0) -> 0 | H57: 0
A58: 910 | B58: 118460 | C58: 1 | D58: Normal | E58: €1,750.41 | F58: A010 | G58: =IFERROR(VLOOKUP(F58,Discounts!A:C,3,0),0) -> 0 | H58: €1,750.41
A59: 910 | B59: 134070 | C59: 1 | D59: Normal | E59: 0 | F59: LUXE | G59: =IFERROR(VLOOKUP(F59,Discounts!A:C,3,0),0) -> 0 | H59: 0
A60: 930 | B60: 118470 | C60: 1 | D60: Normal | E60: €2,490.91 | F60: A010 | G60: =IFERROR(VLOOKUP(F60,Discounts!A:C,3,0),0) -> 0 | H60: €2,490.91
A61: 930 | B61: 134070 | C61: 1 | D61: Normal | E61: 0 | F61: LUXE | G61: =IFERROR(VLOOKUP(F61,Discounts!A:C,3,0),0) -> 0 | H61: 0
A62: 950 | B62: 118480 | C62: 1 | D62: Normal | E62: €3,459.50 | F62: A010 | G62: =IFERROR(VLOOKUP(F62,Discounts!A:C,3,0),0) -> 0 | H62: €3,459.50
A63: 950 | B63: 134070 | C63: 1 | D63: Normal | E63: 0 | F63: LUXE | G63: =IFERROR(VLOOKUP(F63,Discounts!A:C,3,0),0) -> 0 | H63: 0
A64: 970 | B64: 118490 | C64: 1 | D64: Normal | E64: €3,483.47 | F64: A010 | G64: =IFERROR(VLOOKUP(F64,Discounts!A:C,3,0),0) -> 0 | H64: €3,483.47
A65: 970 | B65: 134070 | C65: 1 | D65: Normal | E65: 0 | F65: LUXE | G65: =IFERROR(VLOOKUP(F65,Discounts!A:C,3,0),0) -> 0 | H65: 0
A66: 990 | B66: 118500 | C66: 1 | D66: Normal | E66: €3,078.51 | F66: A010 | G66: =IFERROR(VLOOKUP(F66,Discounts!A:C,3,0),0) -> 0 | H66: =IF(D66="Normal",E66*(1-G66),SUMIF(A:A,B66,H:H)*C66) -> €3,078.51
A67: 990 | B67: 134070 | C67: 1 | D67: Normal | E67: 0 | F67: LUXE | G67: =IFERROR(VLOOKUP(F67,Discounts!A:C,3,0),0) -> 0 | H67: 0
A68: 1010 | B68: 118510 | C68: 1 | D68: Normal | E68: €2,792.56 | F68: A010 | G68: =IFERROR(VLOOKUP(F68,Discounts!A:C,3,0),0) -> 0 | H68: €2,792.56
A69: 1010 | B69: 134070 | C69: 1 | D69: Normal | E69: 0 | F69: LUXE | G69: =IFERROR(VLOOKUP(F69,Discounts!A:C,3,0),0) -> 0 | H69: 0
A70: 1030 | B70: 118520 | C70: 1 | D70: Normal | E70: €2,734.71 | F70: A010 | G70: =IFERROR(VLOOKUP(F70,Discounts!A:C,3,0),0) -> 0 | H70: €2,734.71
A71: 1030 | B71: 134070 | C71: 1 | D71: Normal | E71: 0 | F71: LUXE | G71: =IFERROR(VLOOKUP(F71,Discounts!A:C,3,0),0) -> 0 | H71: 0
A72: 1050 | B72: 118530 | C72: 1 | D72: Normal | E72: €2,156.20 | F72: A010 | G72: =IFERROR(VLOOKUP(F72,Discounts!A:C,3,0),0) -> 0 | H72: €2,156.20
A73: 1050 | B73: 134070 | C73: 1 | D73: Normal | E73: 0 | F73: LUXE | G73: =IFERROR(VLOOKUP(F73,Discounts!A:C,3,0),0) -> 0 | H73: 0
A74: 1070 | B74: 118540 | C74: 1 | D74: Normal | E74: €2,042.98 | F74: A010 | G74: =IFERROR(VLOOKUP(F74,Discounts!A:C,3,0),0) -> 0 | H74: €2,042.98
A75: 1070 | B75: 134070 | C75: 1 | D75: Normal | E75: 0 | F75: LUXE | G75: =IFERROR(VLOOKUP(F75,Discounts!A:C,3,0),0) -> 0 | H75: 0
A76: 1090 | B76: 118550 | C76: 1 | D76: Normal | E76: €2,055.37 | F76: A010 | G76: =IFERROR(VLOOKUP(F76,Discounts!A:C,3,0),0) -> 0 | H76: €2,055.37
A77: 1090 | B77: 134070 | C77: 1 | D77: Normal | E77: 0 | F77: LUXE | G77: =IFERROR(VLOOKUP(F77,Discounts!A:C,3,0),0) -> 0 | H77: 0
A78: 1110 | B78: 118560 | C78: 1 | D78: Normal | E78: €2,263.64 | F78: A010 | G78: =IFERROR(VLOOKUP(F78,Discounts!A:C,3,0),0) -> 0 | H78: €2,263.64
A79: 1110 | B79: 134070 | C79: 1 | D79: Normal | E79: 0 | F79: LUXE | G79: =IFERROR(VLOOKUP(F79,Discounts!A:C,3,0),0) -> 0 | H79: 0
A80: 1130 | B80: 118570 | C80: 1 | D80: Normal | E80: €2,133.88 | F80: A010 | G80: =IFERROR(VLOOKUP(F80,Discounts!A:C,3,0),0) -> 0 | H80: €2,133.88
A81: 1130 | B81: 134070 | C81: 1 | D81: Normal | E81: 0 | F81: LUXE | G81: =IFERROR(VLOOKUP(F81,Discounts!A:C,3,0),0) -> 0 | H81: 0
A82: 1150 | B82: 118580 | C82: 1 | D82: Normal | E82: €2,156.20 | F82: A010 | G82: =IFERROR(VLOOKUP(F82,Discounts!A:C,3,0),0) -> 0 | H82: €2,156.20
A83: 1150 | B83: 134070 | C83: 1 | D83: Normal | E83: 0 | F83: LUXE | G83: =IFERROR(VLOOKUP(F83,Discounts!A:C,3,0),0) -> 0 | H83: 0
A84: 1170 | B84: 118590 | C84: 1 | D84: Normal | E84: €2,356.20 | F84: A010 | G84: =IFERROR(VLOOKUP(F84,Discounts!A:C,3,0),0) -> 0 | H84: €2,356.20
A85: 1170 | B85: 134070 | C85: 1 | D85: Normal | E85: 0 | F85: LUXE | G85: =IFERROR(VLOOKUP(F85,Discounts!A:C,3,0),0) -> 0 | H85: 0
A86: 1190 | B86: 118600 | C86: 1 | D86: Normal | E86: €2,549.59 | F86: A010 | G86: =IFERROR(VLOOKUP(F86,Discounts!A:C,3,0),0) -> 0 | H86: €2,549.59
A87: 1190 | B87: 134070 | C87: 1 | D87: Normal | E87: 0 | F87: LUXE | G87: =IFERROR(VLOOKUP(F87,Discounts!A:C,3,0),0) -> 0 | H87: 0
A88: 1210 | B88: 118610 | C88: 1 | D88: Normal | E88: €2,356.20 | F88: A010 | G88: =IFERROR(VLOOKUP(F88,Discounts!A:C,3,0),0) -> 0 | H88: €2,356.20
A89: 1210 | B89: 134070 | C89: 1 | D89: Normal | E89: 0 | F89: LUXE | G89: =IFERROR(VLOOKUP(F89,Discounts!A:C,3,0),0) -> 0 | H89: 0
A90: 1230 | B90: 118620 | C90: 1 | D90: Normal | E90: €2,356.20 | F90: A010 | G90: =IFERROR(VLOOKUP(F90,Discounts!A:C,3,0),0) -> 0 | H90: €2,356.20
A91: 1230 | B91: 134070 | C91: 1 | D91: Normal | E91: 0 | F91: LUXE | G91: =IFERROR(VLOOKUP(F91,Discounts!A:C,3,0),0) -> 0 | H91: 0
A92: 1250 | B92: 118630 | C92: 1 | D92: Normal | E92: €2,598.35 | F92: A010 | G92: =IFERROR(VLOOKUP(F92,Discounts!A:C,3,0),0) -> 0 | H92: €2,598.35
A93: 1250 | B93: 134070 | C93: 1 | D93: Normal | E93: 0 | F93: LUXE | G93: =IFERROR(VLOOKUP(F93,Discounts!A:C,3,0),0) -> 0 | H93: 0
A94: 1270 | B94: 118640 | C94: 1 | D94: Normal | E94: €2,473.55 | F94: A010 | G94: =IFERROR(VLOOKUP(F94,Discounts!A:C,3,0),0) -> 0 | H94: €2,473.55
A95: 1270 | B95: 134070 | C95: 1 | D95: Normal | E95: 0 | F95: LUXE | G95: =IFERROR(VLOOKUP(F95,Discounts!A:C,3,0),0) -> 0 | H95: 0
A96: 1290 | B96: 118650 | C96: 1 | D96: Normal | E96: €2,356.20 | F96: A010 | G96: =IFERROR(VLOOKUP(F96,Discounts!A:C,3,0),0) -> 0 | H96: €2,356.20
A97: 1290 | B97: 134070 | C97: 1 | D97: Normal | E97: 0 | F97: LUXE | G97: =IFERROR(VLOOKUP(F97,Discounts!A:C,3,0),0) -> 0 | H97: 0
A98: 1310 | B98: 118660 | C98: 1 | D98: Normal | E98: €2,519.83 | F98: A010 | G98: =IFERROR(VLOOKUP(F98,Discounts!A:C,3,0),0) -> 0 | H98: €2,519.83
A99: 1310 | B99: 134070 | C99: 1 | D99: Normal | E99: 0 | F99: LUXE | G99: =IFERROR(VLOOKUP(F99,Discounts!A:C,3,0),0) -> 0 | H99: 0
A100: 1330 | B100: 118670 | C100: 1 | D100: Normal | E100: €2,356.20 | F100: A010 | G100: =IFERROR(VLOOKUP(F100,Discounts!A:C,3,0),0) -> 0 | H100: €2,356.20
A101: 1330 | B101: 134070 | C101: 1 | D101: Normal | E101: 0 | F101: LUXE | G101: =IFERROR(VLOOKUP(F101,Discounts!A:C,3,0),0) -> 0 | H101: 0
A102: 1350 | B102: 118680 | C102: 1 | D102: Normal | E102: €2,356.20 | F102: A010 | G102: =IFERROR(VLOOKUP(F102,Discounts!A:C,3,0),0) -> 0 | H102: €2,356.20
A103: 1350 | B103: 134070 | C103: 1 | D103: Normal | E103: 0 | F103: LUXE | G103: =IFERROR(VLOOKUP(F103,Discounts!A:C,3,0),0) -> 0 | H103: 0
A104: 1370 | B104: 118690 | C104: 1 | D104: Normal | E104: €2,598.35 | F104: A010 | G104: =IFERROR(VLOOKUP(F104,Discounts!A:C,3,0),0) -> 0 | H104: €2,598.35
A105: 1370 | B105: 134070 | C105: 1 | D105: Normal | E105: 0 | F105: LUXE | G105: =IFERROR(VLOOKUP(F105,Discounts!A:C,3,0),0) -> 0 | H105: 0
A106: 1390 | B106: 118700 | C106: 1 | D106: Normal | E106: €2,000.83 | F106: A010 | G106: =IFERROR(VLOOKUP(F106,Discounts!A:C,3,0),0) -> 0 | H106: €2,000.83
A107: 1390 | B107: 134070 | C107: 1 | D107: Normal | E107: 0 | F107: LUXE | G107: =IFERROR(VLOOKUP(F107,Discounts!A:C,3,0),0) -> 0 | H107: 0
A108: 1410 | B108: 118710 | C108: 1 | D108: Normal | E108: €2,114.88 | F108: A010 | G108: =IFERROR(VLOOKUP(F108,Discounts!A:C,3,0),0) -> 0 | H108: €2,114.88
A109: 1410 | B109: 134070 | C109: 1 | D109: Normal | E109: 0 | F109: LUXE | G109: =IFERROR(VLOOKUP(F109,Discounts!A:C,3,0),0) -> 0 | H109: 0
A110: 1430 | B110: 118720 | C110: 1 | D110: Normal | E110: €2,139.67 | F110: A010 | G110: =IFERROR(VLOOKUP(F110,Discounts!A:C,3,0),0) -> 0 | H110: €2,139.67
A111: 1430 | B111: 134070 | C111: 1 | D111: Normal | E111: 0 | F111: LUXE | G111: =IFERROR(VLOOKUP(F111,Discounts!A:C,3,0),0) -> 0 | H111: 0
A112: 1450 | B112: 118730 | C112: 1 | D112: Normal | E112: €2,433.06 | F112: A010 | G112: =IFERROR(VLOOKUP(F112,Discounts!A:C,3,0),0) -> 0 | H112: €2,433.06
A113: 1450 | B113: 134070 | C113: 1 | D113: Normal | E113: 0 | F113: LUXE | G113: =IFERROR(VLOOKUP(F113,Discounts!A:C,3,0),0) -> 0 | H113: 0
A114: 1470 | B114: 118740 | C114: 1 | D114: Normal | E114: €2,342.98 | F114: A010 | G114: =IFERROR(VLOOKUP(F114,Discounts!A:C,3,0),0) -> 0 | H114: €2,342.98
A115: 1470 | B115: 134070 | C115: 1 | D115: Normal | E115: 0 | F115: LUXE | G115: =IFERROR(VLOOKUP(F115,Discounts!A:C,3,0),0) -> 0 | H115: 0
A116: 1490 | B116: 118750 | C116: 1 | D116: Normal | E116: €2,433.06 | F116: A010 | G116: =IFERROR(VLOOKUP(F116,Discounts!A:C,3,0),0) -> 0 | H116: €2,433.06
A117: 1490 | B117: 134070 | C117: 1 | D117: Normal | E117: 0 | F117: LUXE | G117: =IFERROR(VLOOKUP(F117,Discounts!A:C,3,0),0) -> 0 | H117: 0
A118: 1510 | B118: 118760 | C118: 1 | D118: Normal | E118: €2,433.06 | F118: A010 | G118: =IFERROR(VLOOKUP(F118,Discounts!A:C,3,0),0) -> 0 | H118: €2,433.06
A119: 1510 | B119: 134070 | C119: 1 | D119: Normal | E119: 0 | F119: LUXE | G119: =IFERROR(VLOOKUP(F119,Discounts!A:C,3,0),0) -> 0 | H119: 0
A120: 1530 | B120: 118770 | C120: 1 | D120: Normal | E120: €1,795.87 | F120: A010 | G120: =IFERROR(VLOOKUP(F120,Discounts!A:C,3,0),0) -> 0 | H120: €1,795.87
A121: 1530 | B121: 134070 | C121: 1 | D121: Normal | E121: 0 | F121: LUXE | G121: =IFERROR(VLOOKUP(F121,Discounts!A:C,3,0),0) -> 0 | H121: 0
A122: 1550 | B122: 118780 | C122: 1 | D122: Normal | E122: €1,738.02 | F122: A010 | G122: =IFERROR(VLOOKUP(F122,Discounts!A:C,3,0),0) -> 0 | H122: €1,738.02
A123: 1550 | B123: 134070 | C123: 1 | D123: Normal | E123: 0 | F123: LUXE | G123: =IFERROR(VLOOKUP(F123,Discounts!A:C,3,0),0) -> 0 | H123: 0
A124: 1570 | B124: 118790 | C124: 1 | D124: Normal | E124: €1,832.23 | F124: A010 | G124: =IFERROR(VLOOKUP(F124,Discounts!A:C,3,0),0) -> 0 | H124: €1,832.23
A125: 1570 | B125: 134070 | C125: 1 | D125: Normal | E125: 0 | F125: LUXE | G125: =IFERROR(VLOOKUP(F125,Discounts!A:C,3,0),0) -> 0 | H125: 0
A126: 1590 | B126: 118800 | C126: 1 | D126: Normal | E126: €1,214.88 | F126: A010 | G126: =IFERROR(VLOOKUP(F126,Discounts!A:C,3,0),0) -> 0 | H126: €1,214.88
A127: 1590 | B127: 134070 | C127: 1 | D127: Normal | E127: 0 | F127: LUXE | G127: =IFERROR(VLOOKUP(F127,Discounts!A:C,3,0),0) -> 0 | H127: 0
A128: 1610 | B128: 118810 | C128: 1 | D128: Normal | E128: €1,214.88 | F128: A010 | G128: =IFERROR(VLOOKUP(F128,Discounts!A:C,3,0),0) -> 0 | H128: €1,214.88
A129: 1610 | B129: 134070 | C129: 1 | D129: Normal | E129: 0 | F129: LUXE | G129: =IFERROR(VLOOKUP(F129,Discounts!A:C,3,0),0) -> 0 | H129: 0
A130: 1630 | B130: 118820 | C130: 1 | D130: Normal | E130: €1,613.22 | F130: A010 | G130: =IFERROR(VLOOKUP(F130,Discounts!A:C,3,0),0) -> 0 | H130: =IF(D130="Normal",E130*(1-G130),SUMIF(A:A,B130,H:H)*C130) -> €1,613.22
A131: 1630 | B131: 134070 | C131: 1 | D131: Normal | E131: 0 | F131: LUXE | G131: =IFERROR(VLOOKUP(F131,Discounts!A:C,3,0),0) -> 0 | H131: 0
A132: 1650 | B132: 118830 | C132: 1 | D132: Normal | E132: €2,279.34 | F132: A010 | G132: =IFERROR(VLOOKUP(F132,Discounts!A:C,3,0),0) -> 0 | H132: €2,279.34
A133: 1650 | B133: 134070 | C133: 1 | D133: Normal | E133: 0 | F133: LUXE | G133: =IFERROR(VLOOKUP(F133,Discounts!A:C,3,0),0) -> 0 | H133: 0
A134: 1670 | B134: 118840 | C134: 1 | D134: Normal | E134: €2,818.18 | F134: A010 | G134: =IFERROR(VLOOKUP(F134,Discounts!A:C,3,0),0) -> 0 | H134: €2,818.18
A135: 1670 | B135: 134070 | C135: 1 | D135: Normal | E135: 0 | F135: LUXE | G135: =IFERROR(VLOOKUP(F135,Discounts!A:C,3,0),0) -> 0 | H135: 0
A136: 1690 | B136: 118850 | C136: 1 | D136: Normal | E136: €2,679.34 | F136: A010 | G136: =IFERROR(VLOOKUP(F136,Discounts!A:C,3,0),0) -> 0 | H136: €2,679.34
A137: 1690 | B137: 134070 | C137: 1 | D137: Normal | E137: 0 | F137: LUXE | G137: =IFERROR(VLOOKUP(F137,Discounts!A:C,3,0),0) -> 0 | H137: 0
A138: 1710 | B138: 118860 | C138: 1 | D138: Normal | E138: €2,387.60 | F138: A010 | G138: =IFERROR(VLOOKUP(F138,Discounts!A:C,3,0),0) -> 0 | H138: €2,387.60
A139: 1710 | B139: 134070 | C139: 1 | D139: Normal | E139: 0 | F139: LUXE | G139: =IFERROR(VLOOKUP(F139,Discounts!A:C,3,0),0) -> 0 | H139: 0
A140: 1730 | B140: 118870 | C140: 1 | D140: Normal | E140: €2,573.55 | F140: A010 | G140: =IFERROR(VLOOKUP(F140,Discounts!A:C,3,0),0) -> 0 | H140: €2,573.55
A141: 1730 | B141: 134070 | C141: 1 | D141: Normal | E141: 0 | F141: LUXE | G141: =IFERROR(VLOOKUP(F141,Discounts!A:C,3,0),0) -> 0 | H141: 0
A142: 1750 | B142: 118880 | C142: 1 | D142: Normal | E142: €1,239.67 | F142: A010 | G142: =IFERROR(VLOOKUP(F142,Discounts!A:C,3,0),0) -> 0 | H142: €1,239.67
A143: 1750 | B143: 134070 | C143: 1 | D143: Normal | E143: 0 | F143: LUXE | G143: =IFERROR(VLOOKUP(F143,Discounts!A:C,3,0),0) -> 0 | H143: 0
A144: 1770 | B144: 118890 | C144: 1 | D144: Normal | E144: €1,268.60 | F144: A010 | G144: =IFERROR(VLOOKUP(F144,Discounts!A:C,3,0),0) -> 0 | H144: €1,268.60
A145: 1770 | B145: 134070 | C145: 1 | D145: Normal | E145: 0 | F145: LUXE | G145: =IFERROR(VLOOKUP(F145,Discounts!A:C,3,0),0) -> 0 | H145: 0
A146: 1790 | B146: 118900 | C146: 1 | D146: Normal | E146: €1,310.74 | F146: A010 | G146: =IFERROR(VLOOKUP(F146,Discounts!A:C,3,0),0) -> 0 | H146: €1,310.74
A147: 1790 | B147: 134070 | C147: 1 | D147: Normal | E147: 0 | F147: LUXE | G147: =IFERROR(VLOOKUP(F147,Discounts!A:C,3,0),0) -> 0 | H147: 0
A148: 1810 | B148: 118910 | C148: 1 | D148: Normal | E148: €1,402.48 | F148: A010 | G148: =IFERROR(VLOOKUP(F148,Discounts!A:C,3,0),0) -> 0 | H148: €1,402.48
A149: 1810 | B149: 134070 | C149: 1 | D149: Normal | E149: 0 | F149: LUXE | G149: =IFERROR(VLOOKUP(F149,Discounts!A:C,3,0),0) -> 0 | H149: 0
A150: 1830 | B150: 118920 | C150: 1 | D150: Normal | E150: €1,360.33 | F150: A010 | G150: =IFERROR(VLOOKUP(F150,Discounts!A:C,3,0),0) -> 0 | H150: €1,360.33
A151: 1830 | B151: 134070 | C151: 1 | D151: Normal | E151: 0 | F151: LUXE | G151: =IFERROR(VLOOKUP(F151,Discounts!A:C,3,0),0) -> 0 | H151: 0
A152: 1850 | B152: 118930 | C152: 1 | D152: Normal | E152: €1,832.23 | F152: A010 | G152: =IFERROR(VLOOKUP(F152,Discounts!A:C,3,0),0) -> 0 | H152: €1,832.23
A153: 1850 | B153: 134070 | C153: 1 | D153: Normal | E153: 0 | F153: LUXE | G153: =IFERROR(VLOOKUP(F153,Discounts!A:C,3,0),0) -> 0 | H153: 0
A154: 1870 | B154: 118940 | C154: 1 | D154: Normal | E154: €1,832.23 | F154: A010 | G154: =IFERROR(VLOOKUP(F154,Discounts!A:C,3,0),0) -> 0 | H154: €1,832.23
A155: 1870 | B155: 134070 | C155: 1 | D155: Normal | E155: 0 | F155: LUXE | G155: =IFERROR(VLOOKUP(F155,Discounts!A:C,3,0),0) -> 0 | H155: 0
A156: 1890 | B156: 118950 | C156: 1 | D156: Normal | E156: €1,832.23 | F156: A010 | G156: =IFERROR(VLOOKUP(F156,Discounts!A:C,3,0),0) -> 0 | H156: €1,832.23
A157: 1890 | B157: 134070 | C157: 1 | D157: Normal | E157: 0 | F157: LUXE | G157: =IFERROR(VLOOKUP(F157,Discounts!A:C,3,0),0) -> 0 | H157: 0
A158: 1910 | B158: 118960 | C158: 1 | D158: Normal | E158: €1,961.98 | F158: A010 | G158: =IFERROR(VLOOKUP(F158,Discounts!A:C,3,0),0) -> 0 | H158: €1,961.98
A159: 1910 | B159: 134070 | C159: 1 | D159: Normal | E159: 0 | F159: LUXE | G159: =IFERROR(VLOOKUP(F159,Discounts!A:C,3,0),0) -> 0 | H159: 0
A160: 1930 | B160: 118970 | C160: 1 | D160: Normal | E160: €1,778.51 | F160: A010 | G160: =IFERROR(VLOOKUP(F160,Discounts!A:C,3,0),0) -> 0 | H160: €1,778.51
A161: 1930 | B161: 134070 | C161: 1 | D161: Normal | E161: 0 | F161: LUXE | G161: =IFERROR(VLOOKUP(F161,Discounts!A:C,3,0),0) -> 0 | H161: 0
A162: 1950 | B162: 118980 | C162: 1 | D162: Normal | E162: €1,778.51 | F162: A010 | G162: =IFERROR(VLOOKUP(F162,Discounts!A:C,3,0),0) -> 0 | H162: €1,778.51
A163: 1950 | B163: 134070 | C163: 1 | D163: Normal | E163: 0 | F163: LUXE | G163: =IFERROR(VLOOKUP(F163,Discounts!A:C,3,0),0) -> 0 | H163: 0
A164: 1970 | B164: 118990 | C164: 1 | D164: Normal | E164: €1,952.89 | F164: A010 | G164: =IFERROR(VLOOKUP(F164,Discounts!A:C,3,0),0) -> 0 | H164: €1,952.89
A165: 1970 | B165: 134070 | C165: 1 | D165: Normal | E165: 0 | F165: LUXE | G165: =IFERROR(VLOOKUP(F165,Discounts!A:C,3,0),0) -> 0 | H165: 0
A166: 1990 | B166: 119000 | C166: 1 | D166: Normal | E166: €2,183.47 | F166: A010 | G166: =IFERROR(VLOOKUP(F166,Discounts!A:C,3,0),0) -> 0 | H166: €2,183.47
A167: 1990 | B167: 134070 | C167: 1 | D167: Normal | E167: 0 | F167: LUXE | G167: =IFERROR(VLOOKUP(F167,Discounts!A:C,3,0),0) -> 0 | H167: 0
A168: 2010 | B168: 119010 | C168: 1 | D168: Normal | E168: €2,080.99 | F168: A010 | G168: =IFERROR(VLOOKUP(F168,Discounts!A:C,3,0),0) -> 0 | H168: €2,080.99
A169: 2010 | B169: 134070 | C169: 1 | D169: Normal | E169: 0 | F169: LUXE | G169: =IFERROR(VLOOKUP(F169,Discounts!A:C,3,0),0) -> 0 | H169: 0
A170: 2030 | B170: 119020 | C170: 1 | D170: Normal | E170: €1,895.87 | F170: A010 | G170: =IFERROR(VLOOKUP(F170,Discounts!A:C,3,0),0) -> 0 | H170: €1,895.87
A171: 2030 | B171: 134070 | C171: 1 | D171: Normal | E171: 0 | F171: LUXE | G171: =IFERROR(VLOOKUP(F171,Discounts!A:C,3,0),0) -> 0 | H171: 0
A172: 2050 | B172: 119030 | C172: 1 | D172: Normal | E172: €3,278.51 | F172: A010 | G172: =IFERROR(VLOOKUP(F172,Discounts!A:C,3,0),0) -> 0 | H172: €3,278.51
A173: 2050 | B173: 134070 | C173: 1 | D173: Normal | E173: 0 | F173: LUXE | G173: =IFERROR(VLOOKUP(F173,Discounts!A:C,3,0),0) -> 0 | H173: 0
A174: 2070 | B174: 119040 | C174: 1 | D174: Normal | E174: €2,771.90 | F174: A010 | G174: =IFERROR(VLOOKUP(F174,Discounts!A:C,3,0),0) -> 0 | H174: €2,771.90
A175: 2070 | B175: 134070 | C175: 1 | D175: Normal | E175: 0 | F175: LUXE | G175: =IFERROR(VLOOKUP(F175,Discounts!A:C,3,0),0) -> 0 | H175: 0
A176: 2090 | B176: 119050 | C176: 1 | D176: Normal | E176: €1,462.81 | F176: A010 | G176: =IFERROR(VLOOKUP(F176,Discounts!A:C,3,0),0) -> 0 | H176: €1,462.81
A177: 2090 | B177: 134070 | C177: 1 | D177: Normal | E177: 0 | F177: LUXE | G177: =IFERROR(VLOOKUP(F177,Discounts!A:C,3,0),0) -> 0 | H177: 0
A178: 2110 | B178: 119060 | C178: 1 | D178: Normal | E178: €1,251.24 | F178: A010 | G178: =IFERROR(VLOOKUP(F178,Discounts!A:C,3,0),0) -> 0 | H178: €1,251.24
A179: 2110 | B179: 134070 | C179: 1 | D179: Normal | E179: 0 | F179: LUXE | G179: =IFERROR(VLOOKUP(F179,Discounts!A:C,3,0),0) -> 0 | H179: 0
A180: 2130 | B180: 119070 | C180: 1 | D180: Normal | E180: €2,679.34 | F180: A010 | G180: =IFERROR(VLOOKUP(F180,Discounts!A:C,3,0),0) -> 0 | H180: €2,679.34
A181: 2130 | B181: 134070 | C181: 1 | D181: Normal | E181: 0 | F181: LUXE | G181: =IFERROR(VLOOKUP(F181,Discounts!A:C,3,0),0) -> 0 | H181: 0
A182: 2150 | B182: 119080 | C182: 1 | D182: Normal | E182: €2,857.02 | F182: A010 | G182: =IFERROR(VLOOKUP(F182,Discounts!A:C,3,0),0) -> 0 | H182: €2,857.02
A183: 2150 | B183: 134070 | C183: 1 | D183: Normal | E183: 0 | F183: LUXE | G183: =IFERROR(VLOOKUP(F183,Discounts!A:C,3,0),0) -> 0 | H183: 0
A184: 2170 | B184: 119090 | C184: 1 | D184: Normal | E184: €2,909.92 | F184: A010 | G184: =IFERROR(VLOOKUP(F184,Discounts!A:C,3,0),0) -> 0 | H184: €2,909.92
A185: 2170 | B185: 134070 | C185: 1 | D185: Normal | E185: 0 | F185: LUXE | G185: =IFERROR(VLOOKUP(F185,Discounts!A:C,3,0),0) -> 0 | H185: 0
A186: 2190 | B186: 119100 | C186: 1 | D186: Normal | E186: €3,278.51 | F186: A010 | G186: =IFERROR(VLOOKUP(F186,Discounts!A:C,3,0),0) -> 0 | H186: €3,278.51
A187: 2190 | B187: 134070 | C187: 1 | D187: Normal | E187: 0 | F187: LUXE | G187: =IFERROR(VLOOKUP(F187,Discounts!A:C,3,0),0) -> 0 | H187: 0
A188: 2210 | B188: 119110 | C188: 1 | D188: Normal | E188: €3,790.08 | F188: A010 | G188: =IFERROR(VLOOKUP(F188,Discounts!A:C,3,0),0) -> 0 | H188: €3,790.08
A189: 2210 | B189: 134070 | C189: 1 | D189: Normal | E189: 0 | F189: LUXE | G189: =IFERROR(VLOOKUP(F189,Discounts!A:C,3,0),0) -> 0 | H189: 0
A190: 2230 | B190: 119120 | C190: 1 | D190: Normal | E190: €3,478.51 | F190: A010 | G190: =IFERROR(VLOOKUP(F190,Discounts!A:C,3,0),0) -> 0 | H190: €3,478.51
A191: 2230 | B191: 134070 | C191: 1 | D191: Normal | E191: 0 | F191: LUXE | G191: =IFERROR(VLOOKUP(F191,Discounts!A:C,3,0),0) -> 0 | H191: 0
A192: 2250 | B192: 119130 | C192: 1 | D192: Normal | E192: €3,478.51 | F192: A010 | G192: =IFERROR(VLOOKUP(F192,Discounts!A:C,3,0),0) -> 0 | H192: €3,478.51
A193: 2250 | B193: 134070 | C193: 1 | D193: Normal | E193: 0 | F193: LUXE | G193: =IFERROR(VLOOKUP(F193,Discounts!A:C,3,0),0) -> 0 | H193: 0
A194: 2270 | B194: 119140 | C194: 1 | D194: Normal | E194: €1,214.88 | F194: A010 | G194: =IFERROR(VLOOKUP(F194,Discounts!A:C,3,0),0) -> 0 | H194: =IF(D194="Normal",E194*(1-G194),SUMIF(A:A,B194,H:H)*C194) -> €1,214.88
A195: 2270 | B195: 134070 | C195: 1 | D195: Normal | E195: 0 | F195: LUXE | G195: =IFERROR(VLOOKUP(F195,Discounts!A:C,3,0),0) -> 0 | H195: 0
A196: 2290 | B196: 119150 | C196: 1 | D196: Normal | E196: €1,214.88 | F196: A010 | G196: =IFERROR(VLOOKUP(F196,Discounts!A:C,3,0),0) -> 0 | H196: €1,214.88
A197: 2290 | B197: 134070 | C197: 1 | D197: Normal | E197: 0 | F197: LUXE | G197: =IFERROR(VLOOKUP(F197,Discounts!A:C,3,0),0) -> 0 | H197: 0
A198: 2310 | B198: 119160 | C198: 1 | D198: Normal | E198: €1,297.52 | F198: A010 | G198: =IFERROR(VLOOKUP(F198,Discounts!A:C,3,0),0) -> 0 | H198: €1,297.52
A199: 2310 | B199: 134070 | C199: 1 | D199: Normal | E199: 0 | F199: LUXE | G199: =IFERROR(VLOOKUP(F199,Discounts!A:C,3,0),0) -> 0 | H199: 0
A200: 2330 | B200: 119170 | C200: 1 | D200: Normal | E200: €1,662.81 | F200: A010 | G200: =IFERROR(VLOOKUP(F200,Discounts!A:C,3,0),0) -> 0 | H200: €1,662.81
... 4300 more rows

Sheet Discounts
A1: Code | B1: Omschrijving | C1: Korting
A2: Code | B2: Description | C2: 0%
A3: A010 | B3: Voordeuren / Duetdeuren | C3: 0%
A4: A015 | B4: Vroeg-Nederlandse modellen | C4: 0%
A5: A050 | B5: Voordeuren voorraad | C5: 0%
A6: A055 | B6: Vroeg Ned. modellen voorraad | C6: 0%
A7: A090 | B7: Specials voordeuren | C7: 0%
A8: A095 | B8: Specials Vroeg Ned. modellen | C8: 0%
A9: B010 | B9: Binnendeuren | C9: 0%
A10: B015 | B10: Maatwerk Living Doors | C10: 0%
A11: B055 | B11: Living Doors | C11: 0%
A12: B055-1 | B12: Living Doors | C12: 0%
A13: B090 | B13: Specials binnendeuren | C13: 0%
A14: B095 | B14: Specials Living Doors | C14: 0%
A15: C010 | B15: Terrasdeuren | C15: 0%
A16: C050 | B16: Terrasdeuren voorraad | C16: 0%
A17: C090 | B17: Specials terrasdeuren | C17: 0%
A18: D010 | B18: Vlakke deuren StabielGarant | C18: 0%
A19: D050 | B19: Vlakke deuren StabielGarant vr | C19: 0%
A20: D060 | B20: Alumaxx | C20: 0%
A21: E010 | B21: SD merbau maatwerk | C21: 0%
A22: E011 | B22: SD meranti en HW maatwerk | C22: 0%
A23: E012 | B23: SD 54 mm deuren Merbau | C23: 0%
A24: E013 | B24: SD 54 mm deuren niet Merbau | C24: 0%
A25: E015 | B25: SD brede stijl Merbau | C25: 0%
A26: E016 | B26: SD brede stijl niet Merbau | C26: 0%
A27: E020 | B27: SD garage Merbau 38 mm | C27: 0%
A28: E021 | B28: SD garage Merbau 54 mm | C28: 0%
A29: E022 | B29: SD garage niet Merbau 38 mm | C29: 0%
A30: E023 | B30: SD garage niet Merbau 54 mm | C30: 0%
A31: E050 | B31: SD merbau smalle stijl vrd | C31: 0%
A32: E051 | B32: SD meranti smalle stijl vrd | C32: 0%
A33: E052 | B33: SD mb sm. stijl vrd UITLOPEND | C33: 0%
A34: E055 | B34: SD merbau brede stijl vrd | C34: 0%
A35: E056 | B35: SD HW brede stijl vrd | C35: 0%
A36: E057 | B36: SD merbau brede stijl 54mm vrd | C36: 0%
A37: E058 | B37: SD HW brede stijl 54mm vrd | C37: 0%
A38: E059 | B38: SD FSC HW brede stijl 54mm vrd | C38: 0%
A39: E061 | B39: SD FSC meranti smalle st. vrd | C39: 0%
A40: E065 | B40: SD FSC meranti brede st. vrd | C40: 0%
A41: E075 | B41: SD FSC PHW brede st. vrd | C41: 0%
A42: E090 | B42: Specials SD | C42: 0%
A43: E095 | B43: SD TC geisoleerd | C43: 0%
A44: H100 | B44: Ramen | C44: 0%
A45: J100 | B45: Kozijnen | C45: 0%
A46: K600 | B46: Raamprofielen | C46: 0%
A47: LUXE | B47: WAP | C47: 0%
A48: O100 | B48: Hang- & sluitwerk sierbeslag | C48: 0%
A49: O105 | B49: Uitlopend hang&sluit | C49: 0%
A50: O110 | B50: Life Time beslag binnen | C50: 0%
A51: O115 | B51: Life time beslag buiten | C51: 0%
A52: O500 | B52: Hang- & sluitwerk sloten | C52: 0%
A53: O505 | B53: Af te monteren sluitwerk | C53: 0%
A54: P100 | B54: Glas / Speciaal hang/sluitwerk | C54: 0%
A55: P101 | B55: Ingekocht hang en sluitwerk | C55: 0%
A56: P102 | B56: Ingekocht h&s voorraad | C56: 0%
A57: P104 | B57: Glas voor stapeldorpeldeuren | C57: 0%
A58: P105 | B58: Glas voor vroeg Ned modellen | C58: 0%
A59: P106 | B59: Glas voor overige luxe deuren | C59: 0%
A60: P107 | B60: Glas / Panelen Living Doors | C60: 0%
A61: P108 | B61: Glas voor ramen | C61: 0%
A62: P109 | B62: Maatwerkglas Living Doors | C62: 0%
A63: P111 | B63: Maatwerkglas SD/SG | C63: 0%
A64: R100 | B64: Lijstwerk uit voorraad | C64: 0%
A65: SD/SG | B65: WAP | C65: 0%
A66: SERVICE | B66: Services | C66: 0%
A67: VE001 | B67: Meranti kozijn | C67: 0%
A68: VE002 | B68: FSC meranti kozijn | C68: 0%
A69: W100 | B69: Catalogi | C69: 0%
A70: W120 | B70: Diversen | C70: 0%
A71: W125 | B71: Verpakking | C71: 0%

Sheet Report
A1: WK Code | B1: Type | C1: EAN number | D1: Base unit of measure | E1: Description | F1: Description 2 | G1: Description 3 | H1: Product type | I1: Product sub type | J1: Model group | K1: Model Subgroup | L1: Door Model | M1: Type | N1: Subtype | O1: Replenishment | P1: Type of wood | Q1: FSC | R1: Doorblade type | S1: Finish | T1: Height | U1: Width | V1: Thickness | W1: Design | X1: XL | Y1: Rebate | Z1: Fire resistance | AA1: Gross price | AB1: Gross price incl VAT | AC1: Nett price | AE1: Brandline | AF1: Discount group
A2: 8718528022504 | B2: Artikel | C2: 8718528022504 | D2: STUKS | E2: WK042, 780x2015x38, bwh 244 | F2: PEFC-CS PHW | G2: V:RAL9010, vent.sl., isogl., solid/FJ | H2: DEUR | I2: BALKON | J2: BALKON | K2: BS | L2: 042 | O2: Inventory | P2: PHW | Q2: FALSE | S2: RAL 9010 | T2: 2015 | U2: 780 | V2: 38 | X2: FALSE | Y2: FALSE | Z2: FALSE | AA2: 383.47 | AB2: 464 | AC2: =ROUND(AA2*(1-VLOOKUP(AF2,Discount[],3,0)),2) -> 383.47 | AE2: 18030 | AF2: E055
A3: 8718528022528 | B3: Artikel | C3: 8718528022528 | D3: STUKS | E3: WK042, 780x2115x38, bwh 244 | F3: PEFC-CS PHW | G3: V:RAL9010, vent.sl., isogl., solid/FJ | H3: DEUR | I3: BALKON | J3: BALKON | K3: BS | L3: 042 | O3: Inventory | P3: PHW | Q3: FALSE | S3: RAL 9010 | T3: 2115 | U3: 780 | V3: 38 | X3: FALSE | Y3: FALSE | Z3: FALSE | AA3: 383.47 | AB3: 464 | AC3: =ROUND(AA3*(1-VLOOKUP(AF3,Discount[],3,0)),2) -> 383.47 | AE3: 18030 | AF3: E055
A4: 8718528022542 | B4: Artikel | C4: 8718528022542 | D4: STUKS | E4: WK042, 830x2015x38, bwh 244 | F4: PEFC-CS PHW | G4: V:RAL9010, vent.sl., isogl., solid/FJ | H4: DEUR | I4: BALKON | J4: BALKON | K4: BS | L4: 042 | O4: Inventory | P4: PHW | Q4: FALSE | S4: RAL 9010 | T4: 2015 | U4: 830 | V4: 38 | X4: FALSE | Y4: FALSE | Z4: FALSE | AA4: 383.47 | AB4: 464 | AC4: =ROUND(AA4*(1-VLOOKUP(AF4,Discount[],3,0)),2) -> 383.47 | AE4: 18030 | AF4: E055
A5: 8718528022566 | B5: Artikel | C5: 8718528022566 | D5: STUKS | E5: WK042, 830x2115x38, bwh 244 | F5: PEFC-CS PHW | G5: V:RAL9010, vent.sl., isogl., solid/FJ | H5: DEUR | I5: BALKON | J5: BALKON | K5: BS | L5: 042 | O5: Inventory | P5: PHW | Q5: FALSE | S5: RAL 9010 | T5: 2115 | U5: 830 | V5: 38 | X5: FALSE | Y5: FALSE | Z5: FALSE | AA5: 383.47 | AB5: 464 | AC5: =ROUND(AA5*(1-VLOOKUP(AF5,Discount[],3,0)),2) -> 383.47 | AE5: 18030 | AF5: E055
A6: 8718528022665 | B6: Artikel | C6: 8718528022665 | D6: STUKS | E6: WK042, 930x2015x38, bwh 244 | F6: PEFC-CS PHW | G6: V:RAL9010, vent.sl., isogl., solid/FJ | H6: DEUR | I6: BALKON | J6: BALKON | K6: BS | L6: 042 | O6: Inventory | P6: PHW | Q6: FALSE | S6: RAL 9010 | T6: 2015 | U6: 930 | V6: 38 | X6: FALSE | Y6: FALSE | Z6: FALSE | AA6: 383.47 | AB6: 464 | AC6: =ROUND(AA6*(1-VLOOKUP(AF6,Discount[],3,0)),2) -> 383.47 | AE6: 18030 | AF6: E055
A7: 8718528022726 | B7: Artikel | C7: 8718528022726 | D7: STUKS | E7: WK043, 780x2015x38, bwh 349 | F7: PEFC-CS PHW | G7: V:RAL9010, vent.sl., isogl., solid/FJ | H7: DEUR | I7: BALKON | J7: BALKON | K7: BS | L7: 043 | O7: Inventory | P7: PHW | Q7: FALSE | S7: RAL 9010 | T7: 2015 | U7: 780 | V7: 38 | X7: FALSE | Y7: FALSE | Z7: FALSE | AA7: 404.13 | AB7: 489 | AC7: =ROUND(AA7*(1-VLOOKUP(AF7,Discount[],3,0)),2) -> 404.13 | AE7: 18040 | AF7: E055
A8: 8718528022757 | B8: Artikel | C8: 8718528022757 | D8: STUKS | E8: WK043, 780x2115x38, bwh 349 | F8: PEFC-CS PHW | G8: V:RAL9010, vent.sl., isogl., solid/FJ | H8: DEUR | I8: BALKON | J8: BALKON | K8: BS | L8: 043 | O8: Inventory | P8: PHW | Q8: FALSE | S8: RAL 9010 | T8: 2115 | U8: 780 | V8: 38 | X8: FALSE | Y8: FALSE | Z8: FALSE | AA8: 404.13 | AB8: 489 | AC8: =ROUND(AA8*(1-VLOOKUP(AF8,Discount[],3,0)),2) -> 404.13 | AE8: 18040 | AF8: E055
A9: 8718528022788 | B9: Artikel | C9: 8718528022788 | D9: STUKS | E9: WK043, 830x2015x38, bwh 349 | F9: PEFC-CS PHW | G9: V:RAL9010, vent.sl., isogl., solid/FJ | H9: DEUR | I9: BALKON | J9: BALKON | K9: BS | L9: 043 | O9: Inventory | P9: PHW | Q9: FALSE | S9: RAL 9010 | T9: 2015 | U9: 830 | V9: 38 | X9: FALSE | Y9: FALSE | Z9: FALSE | AA9: 404.13 | AB9: 489 | AC9: =ROUND(AA9*(1-VLOOKUP(AF9,Discount[],3,0)),2) -> 404.13 | AE9: 18040 | AF9: E055
A10: 8718528022818 | B10: Artikel | C10: 8718528022818 | D10: STUKS | E10: WK043, 830x2115x38, bwh 349 | F10: PEFC-CS PHW | G10: V:RAL9010, vent.sl., isogl., solid/FJ | H10: DEUR | I10: BALKON | J10: BALKON | K10: BS | L10: 043 | O10: Inventory | P10: PHW | Q10: FALSE | S10: RAL 9010 | T10: 2115 | U10: 830 | V10: 38 | X10: FALSE | Y10: FALSE | Z10: FALSE | AA10: 404.13 | AB10: 489 | AC10: =ROUND(AA10*(1-VLOOKUP(AF10,Discount[],3,0)),2) -> 404.13 | AE10: 18040 | AF10: E055
A11: 8718528022900 | B11: Artikel | C11: 8718528022900 | D11: STUKS | E11: WK043, 880x2115x38, bwh 349 | F11: PEFC-CS PHW | G11: V:RAL9010, vent.sl., isogl., solid/FJ | H11: DEUR | I11: BALKON | J11: BALKON | K11: BS | L11: 043 | O11: Inventory | P11: PHW | Q11: FALSE | S11: RAL 9010 | T11: 2115 | U11: 880 | V11: 38 | X11: FALSE | Y11: FALSE | Z11: FALSE | AA11: 404.13 | AB11: 489 | AC11: =ROUND(AA11*(1-VLOOKUP(AF11,Discount[],3,0)),2) -> 404.13 | AE11: 18040 | AF11: E055
A12: 8718528022993 | B12: Artikel | C12: 8718528022993 | D12: STUKS | E12: WK043, 930x2115x38, bwh 349 | F12: PEFC-CS PHW | G12: V:RAL9010, vent.sl., isogl., solid/FJ | H12: DEUR | I12: BALKON | J12: BALKON | K12: BS | L12: 043 | O12: Inventory | P12: PHW | Q12: FALSE | S12: RAL 9010 | T12: 2115 | U12: 930 | V12: 38 | X12: FALSE | Y12: FALSE | Z12: FALSE | AA12: 404.13 | AB12: 489 | AC12: =ROUND(AA12*(1-VLOOKUP(AF12,Discount[],3,0)),2) -> 404.13 | AE12: 18040 | AF12: E055
A13: 8718528023853 | B13: Artikel | C13: 8718528023853 | D13: STUKS | E13: WK043, 730x2115x38, bwh 349 | F13: PEFC-CS PHW | G13: V:RAL9010, vent.sl., isogl., solid/FJ | H13: DEUR | I13: BALKON | J13: BALKON | K13: BS | L13: 043 | O13: Inventory | P13: PHW | Q13: FALSE | S13: RAL 9010 | T13: 2115 | U13: 730 | V13: 38 | X13: FALSE | Y13: FALSE | Z13: FALSE | AA13: 404.13 | AB13: 489 | AC13: =ROUND(AA13*(1-VLOOKUP(AF13,Discount[],3,0)),2) -> 404.13 | AE13: 18040 | AF13: E055
A14: 8718528219904 | B14: Artikel | C14: 8718528219904 | D14: STUKS | E14: WK043, 880x2115x38, bwh 349 | F14: PEFC-CS PHW, NON-KOMO | G14: V:RAL9010, vent.sl., isogl., solid/FJ | H14: DEUR | I14: BALKON | J14: BALKON | K14: BS | L14: 043 | O14: Inventory | P14: PHW | Q14: FALSE | S14: RAL 9010 | T14: 2115 | U14: 880 | V14: 38 | X14: FALSE | Y14: FALSE | Z14: FALSE | AA14: 404.13 | AB14: 489 | AC14: =ROUND(AA14*(1-VLOOKUP(AF14,Discount[],3,0)),2) -> 404.13 | AE14: 18040 | AF14: E055
A15: 8718528220269 | B15: Artikel | C15: 8718528220269 | D15: STUKS | E15: WK043, 880x2015x38, bwh 349 | F15: PEFC-CS PHW, NON-KOMO | G15: V:RAL9010, vent.sl., isogl., solid/FJ | H15: DEUR | I15: BALKON | J15: BALKON | K15: BS | L15: 043 | O15: Inventory | P15: PHW | Q15: FALSE | S15: RAL 9010 | T15: 2015 | U15: 880 | V15: 38 | X15: FALSE | Y15: FALSE | Z15: FALSE | AA15: 404.13 | AB15: 489 | AC15: =ROUND(AA15*(1-VLOOKUP(AF15,Discount[],3,0)),2) -> 404.13 | AE15: 18040 | AF15: E055
A16: 8718528023877 | B16: Artikel | C16: 8718528023877 | D16: STUKS | E16: WK044, 780x2115x38, bwh 454 | F16: PEFC-CS PHW | G16: V:RAL9010, vent.sl., isogl., solid/FJ | H16: DEUR | I16: BALKON | J16: BALKON | K16: BS | L16: 044 | O16: Inventory | P16: PHW | Q16: FALSE | S16: RAL 9010 | T16: 2115 | U16: 780 | V16: 38 | X16: FALSE | Y16: FALSE | Z16: FALSE | AA16: 423.96 | AB16: 513 | AC16: =ROUND(AA16*(1-VLOOKUP(AF16,Discount[],3,0)),2) -> 423.96 | AE16: 18050 | AF16: E055
A17: 8718528023884 | B17: Artikel | C17: 8718528023884 | D17: STUKS | E17: WK044, 830x2015x38, bwh 454 | F17: PEFC-CS PHW | G17: V:RAL9010, vent.sl., isogl., solid/FJ | H17: DEUR | I17: BALKON | J17: BALKON | K17: BS | L17: 044 | O17: Inventory | P17: PHW | Q17: FALSE | S17: RAL 9010 | T17: 2015 | U17: 830 | V17: 38 | X17: FALSE | Y17: FALSE | Z17: FALSE | AA17: 423.96 | AB17: 513 | AC17: =ROUND(AA17*(1-VLOOKUP(AF17,Discount[],3,0)),2) -> 423.96 | AE17: 18050 | AF17: E055
A18: 8718528023891 | B18: Artikel | C18: 8718528023891 | D18: STUKS | E18: WK044, 830x2115x38, bwh 454 | F18: PEFC-CS PHW | G18: V:RAL9010, vent.sl., isogl., solid/FJ | H18: DEUR | I18: BALKON | J18: BALKON | K18: BS | L18: 044 | O18: Inventory | P18: PHW | Q18: FALSE | S18: RAL 9010 | T18: 2115 | U18: 830 | V18: 38 | X18: FALSE | Y18: FALSE | Z18: FALSE | AA18: 423.96 | AB18: 513 | AC18: =ROUND(AA18*(1-VLOOKUP(AF18,Discount[],3,0)),2) -> 423.96 | AE18: 18050 | AF18: E055
A19: 8718528023907 | B19: Artikel | C19: 8718528023907 | D19: STUKS | E19: WK044, 880x2015x38, bwh 454 | F19: PEFC-CS PHW | G19: V:RAL9010, vent.sl., isogl., solid/FJ | H19: DEUR | I19: BALKON | J19: BALKON | K19: BS | L19: 044 | O19: Inventory | P19: PHW | Q19: FALSE | S19: RAL 9010 | T19: 2015 | U19: 880 | V19: 38 | X19: FALSE | Y19: FALSE | Z19: FALSE | AA19: 423.96 | AB19: 513 | AC19: =ROUND(AA19*(1-VLOOKUP(AF19,Discount[],3,0)),2) -> 423.96 | AE19: 18050 | AF19: E055
A20: 8718528220450 | B20: Artikel | C20: 8718528220450 | D20: STUKS | E20: WK044, 780x2115x38, bwh 454 | F20: PEFC-CS PHW, NON-KOMO | G20: V:RAL9010, vent.sl., isogl., solid/FJ | H20: DEUR | I20: BALKON | J20: BALKON | K20: BS | L20: 044 | O20: Inventory | P20: PHW | Q20: FALSE | S20: RAL 9010 | T20: 2115 | U20: 780 | V20: 38 | X20: FALSE | Y20: FALSE | Z20: FALSE | AA20: 423.96 | AB20: 513 | AC20: =ROUND(AA20*(1-VLOOKUP(AF20,Discount[],3,0)),2) -> 423.96 | AE20: 18050 | AF20: E055
A21: 8718528023051 | B21: Artikel | C21: 8718528023051 | D21: STUKS | E21: WK046, 780x2015x38, bwh 664 | F21: PEFC-CS PHW | G21: V:RAL9010, vent.sl., isogl., solid/FJ | H21: DEUR | I21: BALKON | J21: BALKON | K21: BS | L21: 046 | O21: Inventory | P21: PHW | Q21: FALSE | S21: RAL 9010 | T21: 2015 | U21: 780 | V21: 38 | X21: FALSE | Y21: FALSE | Z21: FALSE | AA21: 464.46 | AB21: 562 | AC21: =ROUND(AA21*(1-VLOOKUP(AF21,Discount[],3,0)),2) -> 464.46 | AE21: 18060 | AF21: E055
A22: 8718528023112 | B22: Artikel | C22: 8718528023112 | D22: STUKS | E22: WK046, 830x2015x38, bwh 664 | F22: PEFC-CS PHW | G22: V:RAL9010, vent.sl., isogl., solid/FJ | H22: DEUR | I22: BALKON | J22: BALKON | K22: BS | L22: 046 | O22: Inventory | P22: PHW | Q22: FALSE | S22: RAL 9010 | T22: 2015 | U22: 830 | V22: 38 | X22: FALSE | Y22: FALSE | Z22: FALSE | AA22: 464.46 | AB22: 562 | AC22: =ROUND(AA22*(1-VLOOKUP(AF22,Discount[],3,0)),2) -> 464.46 | AE22: 18060 | AF22: E055
A23: 8718528023143 | B23: Artikel | C23: 8718528023143 | D23: STUKS | E23: WK046, 830x2115x38, bwh 664 | F23: PEFC-CS PHW | G23: V:RAL9010, vent.sl., isogl., solid/FJ | H23: DEUR | I23: BALKON | J23: BALKON | K23: BS | L23: 046 | O23: Inventory | P23: PHW | Q23: FALSE | S23: RAL 9010 | T23: 2115 | U23: 830 | V23: 38 | X23: FALSE | Y23: FALSE | Z23: FALSE | AA23: 464.46 | AB23: 562 | AC23: =ROUND(AA23*(1-VLOOKUP(AF23,Discount[],3,0)),2) -> 464.46 | AE23: 18060 | AF23: E055
A24: 8718528023235 | B24: Artikel | C24: 8718528023235 | D24: STUKS | E24: WK046, 930x2015x38, bwh 664 | F24: PEFC-CS PHW | G24: V:RAL9010, vent.sl., isogl., solid/FJ | H24: DEUR | I24: BALKON | J24: BALKON | K24: BS | L24: 046 | O24: Inventory | P24: PHW | Q24: FALSE | S24: RAL 9010 | T24: 2015 | U24: 930 | V24: 38 | X24: FALSE | Y24: FALSE | Z24: FALSE | AA24: 464.46 | AB24: 562 | AC24: =ROUND(AA24*(1-VLOOKUP(AF24,Discount[],3,0)),2) -> 464.46 | AE24: 18060 | AF24: E055
A25: 8718528023266 | B25: Artikel | C25: 8718528023266 | D25: STUKS | E25: WK046, 930x2115x38, bwh 664 | F25: PEFC-CS PHW | G25: V:RAL9010, vent.sl., isogl., solid/FJ | H25: DEUR | I25: BALKON | J25: BALKON | K25: BS | L25: 046 | O25: Inventory | P25: PHW | Q25: FALSE | S25: RAL 9010 | T25: 2115 | U25: 930 | V25: 38 | X25: FALSE | Y25: FALSE | Z25: FALSE | AA25: 464.46 | AB25: 562 | AC25: =ROUND(AA25*(1-VLOOKUP(AF25,Discount[],3,0)),2) -> 464.46 | AE25: 18060 | AF25: E055
A26: 8718528023297 | B26: Artikel | C26: 8718528023297 | D26: STUKS | E26: WK048, 780x2015x38, bwh 874 | F26: PEFC-CS PHW | G26: V:RAL9010, vent.sl., isogl., solid/FJ | H26: DEUR | I26: BALKON | J26: BALKON | K26: BS | L26: 048 | O26: Inventory | P26: PHW | Q26: FALSE | S26: RAL 9010 | T26: 2015 | U26: 780 | V26: 38 | X26: FALSE | Y26: FALSE | Z26: FALSE | AA26: 505.78 | AB26: 612 | AC26: =ROUND(AA26*(1-VLOOKUP(AF26,Discount[],3,0)),2) -> 505.78 | AE26: 18070 | AF26: E055
A27: 8718528023358 | B27: Artikel | C27: 8718528023358 | D27: STUKS | E27: WK048, 830x2015x38, bwh 874 | F27: PEFC-CS PHW | G27: V:RAL9010, vent.sl., isogl., solid/FJ | H27: DEUR | I27: BALKON | J27: BALKON | K27: BS | L27: 048 | O27: Inventory | P27: PHW | Q27: FALSE | S27: RAL 9010 | T27: 2015 | U27: 830 | V27: 38 | X27: FALSE | Y27: FALSE | Z27: FALSE | AA27: 505.78 | AB27: 612 | AC27: =ROUND(AA27*(1-VLOOKUP(AF27,Discount[],3,0)),2) -> 505.78 | AE27: 18070 | AF27: E055
A28: 8718528023440 | B28: Artikel | C28: 8718528023440 | D28: STUKS | E28: WK048, 880x2115x38, bwh 874 | F28: PEFC-CS PHW | G28: V:RAL9010, vent.sl., isogl., solid/FJ | H28: DEUR | I28: BALKON | J28: BALKON | K28: BS | L28: 048 | O28: Inventory | P28: PHW | Q28: FALSE | S28: RAL 9010 | T28: 2115 | U28: 880 | V28: 38 | X28: FALSE | Y28: FALSE | Z28: FALSE | AA28: 505.78 | AB28: 612 | AC28: =ROUND(AA28*(1-VLOOKUP(AF28,Discount[],3,0)),2) -> 505.78 | AE28: 18070 | AF28: E055
A29: 8718528023495 | B29: Artikel | C29: 8718528023495 | D29: STUKS | E29: WK048, 930x2015x38, bwh 874 | F29: PEFC-CS PHW | G29: V:RAL9010, vent.sl., isogl., solid/FJ | H29: DEUR | I29: BALKON | J29: BALKON | K29: BS | L29: 048 | O29: Inventory | P29: PHW | Q29: FALSE | S29: RAL 9010 | T29: 2015 | U29: 930 | V29: 38 | X29: FALSE | Y29: FALSE | Z29: FALSE | AA29: 505.78 | AB29: 612 | AC29: =ROUND(AA29*(1-VLOOKUP(AF29,Discount[],3,0)),2) -> 505.78 | AE29: 18070 | AF29: E055
A30: 8718528023525 | B30: Artikel | C30: 8718528023525 | D30: STUKS | E30: WK048, 930x2115x38, bwh 874 | F30: PEFC-CS PHW | G30: V:RAL9010, vent.sl., isogl., solid/FJ | H30: DEUR | I30: BALKON | J30: BALKON | K30: BS | L30: 048 | O30: Inventory | P30: PHW | Q30: FALSE | S30: RAL 9010 | T30: 2115 | U30: 930 | V30: 38 | X30: FALSE | Y30: FALSE | Z30: FALSE | AA30: 505.78 | AB30: 612 | AC30: =ROUND(AA30*(1-VLOOKUP(AF30,Discount[],3,0)),2) -> 505.78 | AE30: 18070 | AF30: E055
A31: 8718528025284 | B31: Artikel | C31: 8718528025284 | D31: STUKS | E31: WK042, 830x2015x38, bwh 244 | F31: FSC® cert. Premium Hardwood | G31: V:RAL9010, vent.sl., isogl., FSC Mix 70% CU-COC 800339 | H31: DEUR | I31: BALKON | J31: BALKON | K31: BS | L31: 042 | O31: Inventory | P31: FSCPHW | Q31: TRUE | S31: RAL 9010 | T31: 2015 | U31: 830 | V31: 38 | X31: FALSE | Y31: FALSE | Z31: FALSE | AA31: 430.58 | AB31: 521 | AC31: =ROUND(AA31*(1-VLOOKUP(AF31,Discount[],3,0)),2) -> 430.58 | AE31: 18080 | AF31: E075
A32: 8718528025291 | B32: Artikel | C32: 8718528025291 | D32: STUKS | E32: WK042, 830x2115x38, bwh 244 | F32: FSC® cert. Premium Hardwood | G32: V:RAL9010, vent.sl., isogl., FSC Mix 70% CU-COC 800339 | H32: DEUR | I32: BALKON | J32: BALKON | K32: BS | L32: 042 | O32: Inventory | P32: FSCPHW | Q32: TRUE | S32: RAL 9010 | T32: 2115 | U32: 830 | V32: 38 | X32: FALSE | Y32: FALSE | Z32: FALSE | AA32: 430.58 | AB32: 521 | AC32: =ROUND(AA32*(1-VLOOKUP(AF32,Discount[],3,0)),2) -> 430.58 | AE32: 18080 | AF32: E075
A33: 8718528025307 | B33: Artikel | C33: 8718528025307 | D33: STUKS | E33: WK042, 880x2015x38, bwh 244 | F33: FSC® cert. Premium Hardwood | G33: V:RAL9010, vent.sl., isogl., FSC Mix 70% CU-COC 800339 | H33: DEUR | I33: BALKON | J33: BALKON | K33: BS | L33: 042 | O33: Inventory | P33: FSCPHW | Q33: TRUE | S33: RAL 9010 | T33: 2015 | U33: 880 | V33: 38 | X33: FALSE | Y33: FALSE | Z33: FALSE | AA33: 430.58 | AB33: 521 | AC33: =ROUND(AA33*(1-VLOOKUP(AF33,Discount[],3,0)),2) -> 430.58 | AE33: 18080 | AF33: E075
A34: 8718528025314 | B34: Artikel | C34: 8718528025314 | D34: STUKS | E34: WK042, 880x2115x38, bwh 244 | F34: FSC® cert. Premium Hardwood | G34: V:RAL9010, vent.sl., isogl., FSC Mix 70% CU-COC 800339 | H34: DEUR | I34: BALKON | J34: BALKON | K34: BS | L34: 042 | O34: Inventory | P34: FSCPHW | Q34: TRUE | S34: RAL 9010 | T34: 2115 | U34: 880 | V34: 38 | X34: FALSE | Y34: FALSE | Z34: FALSE | AA34: 430.58 | AB34: 521 | AC34: =ROUND(AA34*(1-VLOOKUP(AF34,Discount[],3,0)),2) -> 430.58 | AE34: 18080 | AF34: E075
A35: 8718528025321 | B35: Artikel | C35: 8718528025321 | D35: STUKS | E35: WK042, 930x2015x38, bwh 244 | F35: FSC® cert. Premium Hardwood | G35: V:RAL9010, vent.sl., isogl., FSC Mix 70% CU-COC 800339 | H35: DEUR | I35: BALKON | J35: BALKON | K35: BS | L35: 042 | O35: Inventory | P35: FSCPHW | Q35: TRUE | S35: RAL 9010 | T35: 2015 | U35: 930 | V35: 38 | X35: FALSE | Y35: FALSE | Z35: FALSE | AA35: 430.58 | AB35: 521 | AC35: =ROUND(AA35*(1-VLOOKUP(AF35,Discount[],3,0)),2) -> 430.58 | AE35: 18080 | AF35: E075
A36: 8718528025338 | B36: Artikel | C36: 8718528025338 | D36: STUKS | E36: WK042, 930x2115x38, bwh 244 | F36: FSC® cert. Premium Hardwood | G36: V:RAL9010, vent.sl., isogl., FSC Mix 70% CU-COC 800339 | H36: DEUR | I36: BALKON | J36: BALKON | K36: BS | L36: 042 | O36: Inventory | P36: FSCPHW | Q36: TRUE | S36: RAL 9010 | T36: 2115 | U36: 930 | V36: 38 | X36: FALSE | Y36: FALSE | Z36: FALSE | AA36: 430.58 | AB36: 521 | AC36: =ROUND(AA36*(1-VLOOKUP(AF36,Discount[],3,0)),2) -> 430.58 | AE36: 18080 | AF36: E075
A37: 8718528345207 | B37: Artikel | C37: 8718528345207 | D37: STUKS | E37: WK042, 780x2015x38, bwh 244 | F37: FSC® cert. PHW KOMO | G37: V:RAL9010, vent.sl., isogl., solid/FJ | H37: DEUR | I37: BALKON | J37: BALKON | K37: BS | L37: 042 | O37: Inventory | P37: FSCPHW | Q37: TRUE | S37: RAL 9010 | T37: 0 | U37: 0 | V37: 38 | X37: FALSE | Y37: FALSE | Z37: FALSE | AA37: 430.58 | AB37: 521 | AC37: =ROUND(AA37*(1-VLOOKUP(AF37,Discount[],3,0)),2) -> 430.58 | AE37: 18080 | AF37: E075
A38: 8718528345269 | B38: Artikel | C38: 8718528345269 | D38: STUKS | E38: WK042, 780x2115x38, bwh 244 | F38: FSC® cert. PHW KOMO | G38: V:RAL9010, vent.sl., isogl., solid/FJ | H38: DEUR | I38: BALKON | J38: BALKON | K38: BS | L38: 042 | O38: Inventory | P38: FSCPHW | Q38: TRUE | S38: RAL 9010 | T38: 0 | U38: 0 | V38: 38 | X38: FALSE | Y38: FALSE | Z38: FALSE | AA38: 430.58 | AB38: 521 | AC38: =ROUND(AA38*(1-VLOOKUP(AF38,Discount[],3,0)),2) -> 430.58 | AE38: 18080 | AF38: E075
A39: 8718528024508 | B39: Artikel | C39: 8718528024508 | D39: STUKS | E39: WK043, 780x2015x38, bwh 349 | F39: FSC® cert. Premium Hardwood | G39: V:RAL9010, vent.sl., isogl., FSC Mix 70% CU-COC 800339 | H39: DEUR | I39: BALKON | J39: BALKON | K39: BS | L39: 043 | O39: Inventory | P39: FSCPHW | Q39: TRUE | S39: RAL 9010 | T39: 2015 | U39: 780 | V39: 38 | X39: FALSE | Y39: FALSE | Z39: FALSE | AA39: 453.72 | AB39: 549 | AC39: =ROUND(AA39*(1-VLOOKUP(AF39,Discount[],3,0)),2) -> 453.72 | AE39: 18090 | AF39: E075
A40: 8718528024515 | B40: Artikel | C40: 8718528024515 | D40: STUKS | E40: WK043, 780x2115x38, bwh 349 | F40: FSC® cert. Premium Hardwood | G40: V:RAL9010, vent.sl., isogl., FSC Mix 70% CU-COC 800339 | H40: DEUR | I40: BALKON | J40: BALKON | K40: BS | L40: 043 | O40: Inventory | P40: FSCPHW | Q40: TRUE | S40: RAL 9010 | T40: 2115 | U40: 780 | V40: 38 | X40: FALSE | Y40: FALSE | Z40: FALSE | AA40: 453.72 | AB40: 549 | AC40: =ROUND(AA40*(1-VLOOKUP(AF40,Discount[],3,0)),2) -> 453.72 | AE40: 18090 | AF40: E075
A41: 8718528024522 | B41: Artikel | C41: 8718528024522 | D41: STUKS | E41: WK043, 830x2015x38, bwh 349 | F41: FSC® cert. Premium Hardwood | G41: V:RAL9010, vent.sl., isogl., FSC Mix 70% CU-COC 800339 | H41: DEUR | I41: BALKON | J41: BALKON | K41: BS | L41: 043 | O41: Inventory | P41: FSCPHW | Q41: TRUE | S41: RAL 9010 | T41: 2015 | U41: 830 | V41: 38 | X41: FALSE | Y41: FALSE | Z41: FALSE | AA41: 453.72 | AB41: 549 | AC41: =ROUND(AA41*(1-VLOOKUP(AF41,Discount[],3,0)),2) -> 453.72 | AE41: 18090 | AF41: E075
A42: 8718528024539 | B42: Artikel | C42: 8718528024539 | D42: STUKS | E42: WK043, 830x2115x38, bwh 349 | F42: FSC® cert. Premium Hardwood | G42: V:RAL9010, vent.sl., isogl., FSC Mix 70% CU-COC 800339 | H42: DEUR | I42: BALKON | J42: BALKON | K42: BS | L42: 043 | O42: Inventory | P42: FSCPHW | Q42: TRUE | S42: RAL 9010 | T42: 2115 | U42: 830 | V42: 38 | X42: FALSE | Y42: FALSE | Z42: FALSE | AA42: 453.72 | AB42: 549 | AC42: =ROUND(AA42*(1-VLOOKUP(AF42,Discount[],3,0)),2) -> 453.72 | AE42: 18090 | AF42: E075
A43: 8718528024546 | B43: Artikel | C43: 8718528024546 | D43: STUKS | E43: WK043, 880x2015x38, bwh 349 | F43: FSC® cert. Premium Hardwood | G43: V:RAL9010, vent.sl., isogl., FSC Mix 70% CU-COC 800339 | H43: DEUR | I43: BALKON | J43: BALKON | K43: BS | L43: 043 | O43: Inventory | P43: FSCPHW | Q43: TRUE | S43: RAL 9010 | T43: 2015 | U43: 880 | V43: 38 | X43: FALSE | Y43: FALSE | Z43: FALSE | AA43: 453.72 | AB43: 549 | AC43: =ROUND(AA43*(1-VLOOKUP(AF43,Discount[],3,0)),2) -> 453.72 | AE43: 18090 | AF43: E075
A44: 8718528024553 | B44: Artikel | C44: 8718528024553 | D44: STUKS | E44: WK043, 880x2115x38, bwh 349 | F44: FSC® cert. Premium Hardwood | G44: V:RAL9010, vent.sl., isogl., FSC Mix 70% CU-COC 800339 | H44: DEUR | I44: BALKON | J44: BALKON | K44: BS | L44: 043 | O44: Inventory | P44: FSCPHW | Q44: TRUE | S44: RAL 9010 | T44: 2115 | U44: 880 | V44: 38 | X44: FALSE | Y44: FALSE | Z44: FALSE | AA44: 453.72 | AB44: 549 | AC44: =ROUND(AA44*(1-VLOOKUP(AF44,Discount[],3,0)),2) -> 453.72 | AE44: 18090 | AF44: E075
A45: 8718528024560 | B45: Artikel | C45: 8718528024560 | D45: STUKS | E45: WK043, 930x2015x38, bwh 349 | F45: FSC® cert. Premium Hardwood | G45: V:RAL9010, vent.sl., isogl., FSC Mix 70% CU-COC 800339 | H45: DEUR | I45: BALKON | J45: BALKON | K45: BS | L45: 043 | O45: Inventory | P45: FSCPHW | Q45: TRUE | S45: RAL 9010 | T45: 2015 | U45: 930 | V45: 38 | X45: FALSE | Y45: FALSE | Z45: FALSE | AA45: 453.72 | AB45: 549 | AC45: =ROUND(AA45*(1-VLOOKUP(AF45,Discount[],3,0)),2) -> 453.72 | AE45: 18090 | AF45: E075
A46: 8718528024577 | B46: Artikel | C46: 8718528024577 | D46: STUKS | E46: WK043, 930x2115x38, bwh 349 | F46: FSC® cert. Premium Hardwood | G46: V:RAL9010, vent.sl., isogl., FSC Mix 70% CU-COC 800339 | H46: DEUR | I46: BALKON | J46: BALKON | K46: BS | L46: 043 | O46: Inventory | P46: FSCPHW | Q46: TRUE | S46: RAL 9010 | T46: 2115 | U46: 930 | V46: 38 | X46: FALSE | Y46: FALSE | Z46: FALSE | AA46: 453.72 | AB46: 549 | AC46: =ROUND(AA46*(1-VLOOKUP(AF46,Discount[],3,0)),2) -> 453.72 | AE46: 18090 | AF46: E075
A47: 8718528345290 | B47: Artikel | C47: 8718528345290 | D47: STUKS | E47: WK043, 730x2015x38, bwh 349 | F47: FSC® cert. PHW KOMO | G47: V:RAL9010, vent.sl., isogl., solid/FJ | H47: DEUR | I47: BALKON | J47: BALKON | K47: BS | L47: 043 | O47: Inventory | P47: FSCPHW | Q47: TRUE | S47: RAL 9010 | T47: 0 | U47: 0 | V47: 38 | X47: FALSE | Y47: FALSE | Z47: FALSE | AA47: 453.72 | AB47: 549 | AC47: =ROUND(AA47*(1-VLOOKUP(AF47,Discount[],3,0)),2) -> 453.72 | AE47: 18090 | AF47: E075
A48: 8718528345320 | B48: Artikel | C48: 8718528345320 | D48: STUKS | E48: WK043, 730x2115x38, bwh 349 | F48: FSC® cert. PHW KOMO | G48: V:RAL9010, vent.sl., isogl., solid/FJ | H48: DEUR | I48: BALKON | J48: BALKON | K48: BS | L48: 043 | O48: Inventory | P48: FSCPHW | Q48: TRUE | S48: RAL 9010 | T48: 0 | U48: 0 | V48: 38 | X48: FALSE | Y48: FALSE | Z48: FALSE | AA48: 453.72 | AB48: 549 | AC48: =ROUND(AA48*(1-VLOOKUP(AF48,Discount[],3,0)),2) -> 453.72 | AE48: 18090 | AF48: E075
A49: 8718528025376 | B49: Artikel | C49: 8718528025376 | D49: STUKS | E49: WK044, 830x2015x38, bwh 454 | F49: FSC® cert. Premium Hardwood | G49: V:RAL9010, vent.sl., isogl., FSC Mix 70% CU-COC 800339 | H49: DEUR | I49: BALKON | J49: BALKON | K49: BS | L49: 044 | O49: Inventory | P49: FSCPHW | Q49: TRUE | S49: RAL 9010 | T49: 2015 | U49: 830 | V49: 38 | X49: FALSE | Y49: FALSE | Z49: FALSE | AA49: 475.2 | AB49: 575 | AC49: =ROUND(AA49*(1-VLOOKUP(AF49,Discount[],3,0)),2) -> 475.2 | AE49: 18100 | AF49: E075
A50: 8718528025383 | B50: Artikel | C50: 8718528025383 | D50: STUKS | E50: WK044, 830x2115x38, bwh 454 | F50: FSC® cert. Premium Hardwood | G50: V:RAL9010, vent.sl., isogl., FSC Mix 70% CU-COC 800339 | H50: DEUR | I50: BALKON | J50: BALKON | K50: BS | L50: 044 | O50: Inventory | P50: FSCPHW | Q50: TRUE | S50: RAL 9010 | T50: 2115 | U50: 830 | V50: 38 | X50: FALSE | Y50: FALSE | Z50: FALSE | AA50: 475.2 | AB50: 575 | AC50: =ROUND(AA50*(1-VLOOKUP(AF50,Discount[],3,0)),2) -> 475.2 | AE50: 18100 | AF50: E075
A51: 8718528025390 | B51: Artikel | C51: 8718528025390 | D51: STUKS | E51: WK044, 880x2015x38, bwh 454 | F51: FSC® cert. Premium Hardwood | G51: V:RAL9010, vent.sl., isogl., FSC Mix 70% CU-COC 800339 | H51: DEUR | I51: BALKON | J51: BALKON | K51: BS | L51: 044 | O51: Inventory | P51: FSCPHW | Q51: TRUE | S51: RAL 9010 | T51: 2015 | U51: 880 | V51: 38 | X51: FALSE | Y51: FALSE | Z51: FALSE | AA51: 475.2 | AB51: 575 | AC51: =ROUND(AA51*(1-VLOOKUP(AF51,Discount[],3,0)),2) -> 475.2 | AE51: 18100 | AF51: E075
A52: 8718528025406 | B52: Artikel | C52: 8718528025406 | D52: STUKS | E52: WK044, 880x2115x38, bwh 454 | F52: FSC® cert. Premium Hardwood | G52: V:RAL9010, vent.sl., isogl., FSC Mix 70% CU-COC 800339 | H52: DEUR | I52: BALKON | J52: BALKON | K52: BS | L52: 044 | O52: Inventory | P52: FSCPHW | Q52: TRUE | S52: RAL 9010 | T52: 2115 | U52: 880 | V52: 38 | X52: FALSE | Y52: FALSE | Z52: FALSE | AA52: 475.2 | AB52: 575 | AC52: =ROUND(AA52*(1-VLOOKUP(AF52,Discount[],3,0)),2) -> 475.2 | AE52: 18100 | AF52: E075
A53: 8718528025413 | B53: Artikel | C53: 8718528025413 | D53: STUKS | E53: WK044, 930x2015x38, bwh 454 | F53: FSC® cert. Premium Hardwood | G53: V:RAL9010, vent.sl., isogl., FSC Mix 70% CU-COC 800339 | H53: DEUR | I53: BALKON | J53: BALKON | K53: BS | L53: 044 | O53: Inventory | P53: FSCPHW | Q53: TRUE | S53: RAL 9010 | T53: 2015 | U53: 930 | V53: 38 | X53: FALSE | Y53: FALSE | Z53: FALSE | AA53: 475.2 | AB53: 575 | AC53: =ROUND(AA53*(1-VLOOKUP(AF53,Discount[],3,0)),2) -> 475.2 | AE53: 18100 | AF53: E075
A54: 8718528025420 | B54: Artikel | C54: 8718528025420 | D54: STUKS | E54: WK044, 930x2115x38, bwh 454 | F54: FSC® cert. Premium Hardwood | G54: V:RAL9010, vent.sl., isogl., FSC Mix 70% CU-COC 800339 | H54: DEUR | I54: BALKON | J54: BALKON | K54: BS | L54: 044 | O54: Inventory | P54: FSCPHW | Q54: TRUE | S54: RAL 9010 | T54: 2115 | U54: 930 | V54: 38 | X54: FALSE | Y54: FALSE | Z54: FALSE | AA54: 475.2 | AB54: 575 | AC54: =ROUND(AA54*(1-VLOOKUP(AF54,Discount[],3,0)),2) -> 475.2 | AE54: 18100 | AF54: E075
A55: 8718528345351 | B55: Artikel | C55: 8718528345351 | D55: STUKS | E55: WK044, 780x2015x38, bwh 454 | F55: FSC® cert. PHW KOMO | G55: V:RAL9010, vent.sl., isogl., solid/FJ | H55: DEUR | I55: BALKON | J55: BALKON | K55: BS | L55: 044 | O55: Inventory | P55: FSCPHW | Q55: TRUE | S55: RAL 9010 | T55: 0 | U55: 0 | V55: 38 | X55: FALSE | Y55: FALSE | Z55: FALSE | AA55: 475.2 | AB55: 575 | AC55: =ROUND(AA55*(1-VLOOKUP(AF55,Discount[],3,0)),2) -> 475.2 | AE55: 18100 | AF55: E075
A56: 8718528345382 | B56: Artikel | C56: 8718528345382 | D56: STUKS | E56: WK044, 780x2115x38, bwh 454 | F56: FSC® cert. PHW KOMO | G56: V:RAL9010, vent.sl., isogl., solid/FJ | H56: DEUR | I56: BALKON | J56: BALKON | K56: BS | L56: 044 | O56: Inventory | P56: FSCPHW | Q56: TRUE | S56: RAL 9010 | T56: 0 | U56: 0 | V56: 38 | X56: FALSE | Y56: FALSE | Z56: FALSE | AA56: 475.2 | AB56: 575 | AC56: =ROUND(AA56*(1-VLOOKUP(AF56,Discount[],3,0)),2) -> 475.2 | AE56: 18100 | AF56: E075
A57: 8718528024614 | B57: Artikel | C57: 8718528024614 | D57: STUKS | E57: WK046, 830x2015x38, bwh 664 | F57: FSC® cert. Premium Hardwood | G57: V:RAL9010, vent.sl., isogl., FSC Mix 70% CU-COC 800339 | H57: DEUR | I57: BALKON | J57: BALKON | K57: BS | L57: 046 | O57: Inventory | P57: FSCPHW | Q57: TRUE | S57: RAL 9010 | T57: 2015 | U57: 830 | V57: 38 | X57: FALSE | Y57: FALSE | Z57: FALSE | AA57: 523.14 | AB57: 633 | AC57: =ROUND(AA57*(1-VLOOKUP(AF57,Discount[],3,0)),2) -> 523.14 | AE57: 18110 | AF57: E075
A58: 8718528024621 | B58: Artikel | C58: 8718528024621 | D58: STUKS | E58: WK046, 830x2115x38, bwh 664 | F58: FSC® cert. Premium Hardwood | G58: V:RAL9010, vent.sl., isogl., FSC Mix 70% CU-COC 800339 | H58: DEUR | I58: BALKON | J58: BALKON | K58: BS | L58: 046 | O58: Inventory | P58: FSCPHW | Q58: TRUE | S58: RAL 9010 | T58: 2115 | U58: 830 | V58: 38 | X58: FALSE | Y58: FALSE | Z58: FALSE | AA58: 523.14 | AB58: 633 | AC58: =ROUND(AA58*(1-VLOOKUP(AF58,Discount[],3,0)),2) -> 523.14 | AE58: 18110 | AF58: E075
A59: 8718528024638 | B59: Artikel | C59: 8718528024638 | D59: STUKS | E59: WK046, 880x2015x38, bwh 664 | F59: FSC® cert. Premium Hardwood | G59: V:RAL9010, vent.sl., isogl., FSC Mix 70% CU-COC 800339 | H59: DEUR | I59: BALKON | J59: BALKON | K59: BS | L59: 046 | O59: Inventory | P59: FSCPHW | Q59: TRUE | S59: RAL 9010 | T59: 2015 | U59: 880 | V59: 38 | X59: FALSE | Y59: FALSE | Z59: FALSE | AA59: 523.14 | AB59: 633 | AC59: =ROUND(AA59*(1-VLOOKUP(AF59,Discount[],3,0)),2) -> 523.14 | AE59: 18110 | AF59: E075
A60: 8718528024645 | B60: Artikel | C60: 8718528024645 | D60: STUKS | E60: WK046, 880x2115x38, bwh 664 | F60: FSC® cert. Premium Hardwood | G60: V:RAL9010, vent.sl., isogl., FSC Mix 70% CU-COC 800339 | H60: DEUR | I60: BALKON | J60: BALKON | K60: BS | L60: 046 | O60: Inventory | P60: FSCPHW | Q60: TRUE | S60: RAL 9010 | T60: 2115 | U60: 880 | V60: 38 | X60: FALSE | Y60: FALSE | Z60: FALSE | AA60: 523.14 | AB60: 633 | AC60: =ROUND(AA60*(1-VLOOKUP(AF60,Discount[],3,0)),2) -> 523.14 | AE60: 18110 | AF60: E075
A61: 8718528024652 | B61: Artikel | C61: 8718528024652 | D61: STUKS | E61: WK046, 930x2015x38, bwh 664 | F61: FSC® cert. Premium Hardwood | G61: V:RAL9010, vent.sl., isogl., FSC Mix 70% CU-COC 800339 | H61: DEUR | I61: BALKON | J61: BALKON | K61: BS | L61: 046 | O61: Inventory | P61: FSCPHW | Q61: TRUE | S61: RAL 9010 | T61: 2015 | U61: 930 | V61: 38 | X61: FALSE | Y61: FALSE | Z61: FALSE | AA61: 523.14 | AB61: 633 | AC61: =ROUND(AA61*(1-VLOOKUP(AF61,Discount[],3,0)),2) -> 523.14 | AE61: 18110 | AF61: E075
A62: 8718528024669 | B62: Artikel | C62: 8718528024669 | D62: STUKS | E62: WK046, 930x2115x38, bwh 664 | F62: FSC® cert. Premium Hardwood | G62: V:RAL9010, vent.sl., isogl., FSC Mix 70% CU-COC 800339 | H62: DEUR | I62: BALKON | J62: BALKON | K62: BS | L62: 046 | O62: Inventory | P62: FSCPHW | Q62: TRUE | S62: RAL 9010 | T62: 2115 | U62: 930 | V62: 38 | X62: FALSE | Y62: FALSE | Z62: FALSE | AA62: 523.14 | AB62: 633 | AC62: =ROUND(AA62*(1-VLOOKUP(AF62,Discount[],3,0)),2) -> 523.14 | AE62: 18110 | AF62: E075
A63: 8718528345412 | B63: Artikel | C63: 8718528345412 | D63: STUKS | E63: WK046, 780x2015x38, bwh 664 | F63: FSC® cert. PHW KOMO | G63: V:RAL9010, vent.sl., isogl., solid/FJ | H63: DEUR | I63: BALKON | J63: BALKON | K63: BS | L63: 046 | O63: Inventory | P63: FSCPHW | Q63: TRUE | S63: RAL 9010 | T63: 0 | U63: 0 | V63: 38 | X63: FALSE | Y63: FALSE | Z63: FALSE | AA63: 523.14 | AB63: 633 | AC63: =ROUND(AA63*(1-VLOOKUP(AF63,Discount[],3,0)),2) -> 523.14 | AE63: 18110 | AF63: E075
A64: 8718528345443 | B64: Artikel | C64: 8718528345443 | D64: STUKS | E64: WK046, 780x2115x38, bwh 664 | F64: FSC® cert. PHW KOMO | G64: V:RAL9010, vent.sl., isogl., solid/FJ | H64: DEUR | I64: BALKON | J64: BALKON | K64: BS | L64: 046 | O64: Inventory | P64: FSCPHW | Q64: TRUE | S64: RAL 9010 | T64: 0 | U64: 0 | V64: 38 | X64: FALSE | Y64: FALSE | Z64: FALSE | AA64: 523.14 | AB64: 633 | AC64: =ROUND(AA64*(1-VLOOKUP(AF64,Discount[],3,0)),2) -> 523.14 | AE64: 18110 | AF64: E075
A65: 8718528024690 | B65: Artikel | C65: 8718528024690 | D65: STUKS | E65: WK048, 830x2015x38, bwh 874 | F65: FSC® cert. Premium Hardwood | G65: V:RAL9010, vent.sl., isogl., FSC Mix 70% CU-COC 800339 | H65: DEUR | I65: BALKON | J65: BALKON | K65: BS | L65: 048 | O65: Inventory | P65: FSCPHW | Q65: TRUE | S65: RAL 9010 | T65: 2015 | U65: 830 | V65: 38 | X65: FALSE | Y65: FALSE | Z65: FALSE | AA65: 569.42 | AB65: 689 | AC65: =ROUND(AA65*(1-VLOOKUP(AF65,Discount[],3,0)),2) -> 569.42 | AE65: 18130 | AF65: E075
A66: 8718528024706 | B66: Artikel | C66: 8718528024706 | D66: STUKS | E66: WK048, 830x2115x38, bwh 874 | F66: FSC® cert. Premium Hardwood | G66: V:RAL9010, vent.sl., isogl., FSC Mix 70% CU-COC 800339 | H66: DEUR | I66: BALKON | J66: BALKON | K66: BS | L66: 048 | O66: Inventory | P66: FSCPHW | Q66: TRUE | S66: RAL 9010 | T66: 2115 | U66: 830 | V66: 38 | X66: FALSE | Y66: FALSE | Z66: FALSE | AA66: 569.42 | AB66: 689 | AC66: =ROUND(AA66*(1-VLOOKUP(AF66,Discount[],3,0)),2) -> 569.42 | AE66: 18130 | AF66: E075
A67: 8718528024713 | B67: Artikel | C67: 8718528024713 | D67: STUKS | E67: WK048, 880x2015x38, bwh 874 | F67: FSC® cert. Premium Hardwood | G67: V:RAL9010, vent.sl., isogl., FSC Mix 70% CU-COC 800339 | H67: DEUR | I67: BALKON | J67: BALKON | K67: BS | L67: 048 | O67: Inventory | P67: FSCPHW | Q67: TRUE | S67: RAL 9010 | T67: 2015 | U67: 880 | V67: 38 | X67: FALSE | Y67: FALSE | Z67: FALSE | AA67: 569.42 | AB67: 689 | AC67: =ROUND(AA67*(1-VLOOKUP(AF67,Discount[],3,0)),2) -> 569.42 | AE67: 18130 | AF67: E075
A68: 8718528024720 | B68: Artikel | C68: 8718528024720 | D68: STUKS | E68: WK048, 880x2115x38, bwh 874 | F68: FSC® cert. Premium Hardwood | G68: V:RAL9010, vent.sl., isogl., FSC Mix 70% CU-COC 800339 | H68: DEUR | I68: BALKON | J68: BALKON | K68: BS | L68: 048 | O68: Inventory | P68: FSCPHW | Q68: TRUE | S68: RAL 9010 | T68: 2115 | U68: 880 | V68: 38 | X68: FALSE | Y68: FALSE | Z68: FALSE | AA68: 569.42 | AB68: 689 | AC68: =ROUND(AA68*(1-VLOOKUP(AF68,Discount[],3,0)),2) -> 569.42 | AE68: 18130 | AF68: E075
A69: 8718528024737 | B69: Artikel | C69: 8718528024737 | D69: STUKS | E69: WK048, 930x2015x38, bwh 874 | F69: FSC® cert. Premium Hardwood | G69: V:RAL9010, vent.sl., isogl., FSC Mix 70% CU-COC 800339 | H69: DEUR | I69: BALKON | J69: BALKON | K69: BS | L69: 048 | O69: Inventory | P69: FSCPHW | Q69: TRUE | S69: RAL 9010 | T69: 2015 | U69: 930 | V69: 38 | X69: FALSE | Y69: FALSE | Z69: FALSE | AA69: 569.42 | AB69: 689 | AC69: =ROUND(AA69*(1-VLOOKUP(AF69,Discount[],3,0)),2) -> 569.42 | AE69: 18130 | AF69: E075
A70: 8718528024744 | B70: Artikel | C70: 8718528024744 | D70: STUKS | E70: WK048, 930x2115x38, bwh 874 | F70: FSC® cert. Premium Hardwood | G70: V:RAL9010, vent.sl., isogl., FSC Mix 70% CU-COC 800339 | H70: DEUR | I70: BALKON | J70: BALKON | K70: BS | L70: 048 | O70: Inventory | P70: FSCPHW | Q70: TRUE | S70: RAL 9010 | T70: 2115 | U70: 930 | V70: 38 | X70: FALSE | Y70: FALSE | Z70: FALSE | AA70: 569.42 | AB70: 689 | AC70: =ROUND(AA70*(1-VLOOKUP(AF70,Discount[],3,0)),2) -> 569.42 | AE70: 18130 | AF70: E075
A71: 8718528345474 | B71: Artikel | C71: 8718528345474 | D71: STUKS | E71: WK048, 780x2015x38, bwh 874 | F71: FSC® cert. PHW KOMO | G71: V:RAL9010, vent.sl., isogl., solid/FJ | H71: DEUR | I71: BALKON | J71: BALKON | K71: BS | L71: 048 | O71: Inventory | P71: FSCPHW | Q71: TRUE | S71: RAL 9010 | T71: 0 | U71: 0 | V71: 38 | X71: FALSE | Y71: FALSE | Z71: FALSE | AA71: 569.42 | AB71: 689 | AC71: =ROUND(AA71*(1-VLOOKUP(AF71,Discount[],3,0)),2) -> 569.42 | AE71: 18130 | AF71: E075
A72: 8718528345504 | B72: Artikel | C72: 8718528345504 | D72: STUKS | E72: WK048, 780x2115x38, bwh 874 | F72: FSC® cert. PHW KOMO | G72: V:RAL9010, vent.sl., isogl., solid/FJ | H72: DEUR | I72: BALKON | J72: BALKON | K72: BS | L72: 048 | O72: Inventory | P72: FSCPHW | Q72: TRUE | S72: RAL 9010 | T72: 0 | U72: 0 | V72: 38 | X72: FALSE | Y72: FALSE | Z72: FALSE | AA72: 569.42 | AB72: 689 | AC72: =ROUND(AA72*(1-VLOOKUP(AF72,Discount[],3,0)),2) -> 569.42 | AE72: 18130 | AF72: E075
A73: 8718528024850 | B73: Artikel | C73: 8718528024850 | D73: STUKS | E73: WK042, 830x2015x38, bwh 244 | F73: FSC® cert. Hardwood | G73: V:RAL7035,vent.sl.,isogl.,solid/FJ,FSC Mix 70% CU-COC 800339 | H73: DEUR | I73: BALKON | J73: BALKON | K73: BS | L73: 042 | O73: Inventory | P73: FSCHW | Q73: TRUE | S73: RAL 7035 | T73: 2015 | U73: 830 | V73: 38 | X73: FALSE | Y73: FALSE | Z73: FALSE | AA73: 373.55 | AB73: 452 | AC73: =ROUND(AA73*(1-VLOOKUP(AF73,Discount[],3,0)),2) -> 373.55 | AE73: 18140 | AF73: E065
A74: 8718528024867 | B74: Artikel | C74: 8718528024867 | D74: STUKS | E74: WK042, 830x2115x38, bwh 244 | F74: FSC® cert. Hardwood | G74: V:RAL7035,vent.sl.,isogl.,solid/FJ,FSC Mix 70% CU-COC 800339 | H74: DEUR | I74: BALKON | J74: BALKON | K74: BS | L74: 042 | O74: Inventory | P74: FSCHW | Q74: TRUE | S74: RAL 7035 | T74: 2115 | U74: 830 | V74: 38 | X74: FALSE | Y74: FALSE | Z74: FALSE | AA74: 373.55 | AB74: 452 | AC74: =ROUND(AA74*(1-VLOOKUP(AF74,Discount[],3,0)),2) -> 373.55 | AE74: 18140 | AF74: E065
A75: 8718528024874 | B75: Artikel | C75: 8718528024874 | D75: STUKS | E75: WK042, 880x2015x38, bwh 244 | F75: FSC® cert. Hardwood | G75: V:RAL7035,vent.sl.,isogl.,solid/FJ,FSC Mix 70% CU-COC 800339 | H75: DEUR | I75: BALKON | J75: BALKON | K75: BS | L75: 042 | O75: Inventory | P75: FSCHW | Q75: TRUE | S75: RAL 7035 | T75: 2015 | U75: 880 | V75: 38 | X75: FALSE | Y75: FALSE | Z75: FALSE | AA75: 373.55 | AB75: 452 | AC75: =ROUND(AA75*(1-VLOOKUP(AF75,Discount[],3,0)),2) -> 373.55 | AE75: 18140 | AF75: E065
A76: 8718528024881 | B76: Artikel | C76: 8718528024881 | D76: STUKS | E76: WK042, 880x2115x38, bwh 244 | F76: FSC® cert. Hardwood | G76: V:RAL7035,vent.sl.,isogl.,solid/FJ,FSC Mix 70% CU-COC 800339 | H76: DEUR | I76: BALKON | J76: BALKON | K76: BS | L76: 042 | O76: Inventory | P76: FSCHW | Q76: TRUE | S76: RAL 7035 | T76: 2115 | U76: 880 | V76: 38 | X76: FALSE | Y76: FALSE | Z76: FALSE | AA76: 373.55 | AB76: 452 | AC76: =ROUND(AA76*(1-VLOOKUP(AF76,Discount[],3,0)),2) -> 373.55 | AE76: 18140 | AF76: E065
A77: 8718528024898 | B77: Artikel | C77: 8718528024898 | D77: STUKS | E77: WK042, 930x2015x38, bwh 244 | F77: FSC® cert. Hardwood | G77: V:RAL7035,vent.sl.,isogl.,solid/FJ,FSC Mix 70% CU-COC 800339 | H77: DEUR | I77: BALKON | J77: BALKON | K77: BS | L77: 042 | O77: Inventory | P77: FSCHW | Q77: TRUE | S77: RAL 7035 | T77: 2015 | U77: 930 | V77: 38 | X77: FALSE | Y77: FALSE | Z77: FALSE | AA77: 373.55 | AB77: 452 | AC77: =ROUND(AA77*(1-VLOOKUP(AF77,Discount[],3,0)),2) -> 373.55 | AE77: 18140 | AF77: E065
A78: 8718528024904 | B78: Artikel | C78: 8718528024904 | D78: STUKS | E78: WK042, 930x2115x38, bwh 244 | F78: FSC® cert. Hardwood | G78: V:RAL7035,vent.sl.,isogl.,solid/FJ,FSC Mix 70% CU-COC 800339 | H78: DEUR | I78: BALKON | J78: BALKON | K78: BS | L78: 042 | O78: Inventory | P78: FSCHW | Q78: TRUE | S78: RAL 7035 | T78: 2115 | U78: 930 | V78: 38 | X78: FALSE | Y78: FALSE | Z78: FALSE | AA78: 373.55 | AB78: 452 | AC78: =ROUND(AA78*(1-VLOOKUP(AF78,Discount[],3,0)),2) -> 373.55 | AE78: 18140 | AF78: E065
A79: 8718528219959 | B79: Artikel | C79: 8718528219959 | D79: STUKS | E79: WK042, 930x2115x38, bwh 244 | F79: FSC® cert. Hardwood NON-KOMO | G79: V:RAL7035,vent.sl.,isogl.,solid/FJ,FSC Mix 70% CU-COC 800339 | H79: DEUR | I79: BALKON | J79: BALKON | K79: BS | L79: 042 | O79: Inventory | P79: FSCHW | Q79: TRUE | S79: RAL 7035 | T79: 2115 | U79: 930 | V79: 38 | X79: FALSE | Y79: FALSE | Z79: FALSE | AA79: 373.55 | AB79: 452 | AC79: =ROUND(AA79*(1-VLOOKUP(AF79,Discount[],3,0)),2) -> 373.55 | AE79: 18140 | AF79: E065
A80: 8718528220627 | B80: Artikel | C80: 8718528220627 | D80: STUKS | E80: WK042, 830x2015x38, bwh 244 | F80: FSC® cert. Hardwood NON-KOMO | G80: V:RAL7035,vent.sl.,isogl.,solid/FJ,FSC Mix 70% CU-COC 800339 | H80: DEUR | I80: BALKON | J80: BALKON | K80: BS | L80: 042 | O80: Inventory | P80: FSCHW | Q80: TRUE | S80: RAL 7035 | T80: 2015 | U80: 830 | V80: 38 | X80: FALSE | Y80: FALSE | Z80: FALSE | AA80: 373.55 | AB80: 452 | AC80: =ROUND(AA80*(1-VLOOKUP(AF80,Discount[],3,0)),2) -> 373.55 | AE80: 18140 | AF80: E065
A81: 8718528220634 | B81: Artikel | C81: 8718528220634 | D81: STUKS | E81: WK042, 830x2115x38, bwh 244 | F81: FSC® cert. Hardwood NON-KOMO | G81: V:RAL7035,vent.sl.,isogl.,solid/FJ,FSC Mix 70% CU-COC 800339 | H81: DEUR | I81: BALKON | J81: BALKON | K81: BS | L81: 042 | O81: Inventory | P81: FSCHW | Q81: TRUE | S81: RAL 7035 | T81: 2115 | U81: 830 | V81: 38 | X81: FALSE | Y81: FALSE | Z81: FALSE | AA81: 373.55 | AB81: 452 | AC81: =ROUND(AA81*(1-VLOOKUP(AF81,Discount[],3,0)),2) -> 373.55 | AE81: 18140 | AF81: E065
A82: 8718528220641 | B82: Artikel | C82: 8718528220641 | D82: STUKS | E82: WK042, 880x2115x38, bwh 244 | F82: FSC® cert. Hardwood NON-KOMO | G82: V:RAL7035,vent.sl.,isogl.,solid/FJ,FSC Mix 70% CU-COC 800339 | H82: DEUR | I82: BALKON | J82: BALKON | K82: BS | L82: 042 | O82: Inventory | P82: FSCHW | Q82: TRUE | S82: RAL 7035 | T82: 2115 | U82: 880 | V82: 38 | X82: FALSE | Y82: FALSE | Z82: FALSE | AA82: 373.55 | AB82: 452 | AC82: =ROUND(AA82*(1-VLOOKUP(AF82,Discount[],3,0)),2) -> 373.55 | AE82: 18140 | AF82: E065
A83: 8718528345115 | B83: Artikel | C83: 8718528345115 | D83: STUKS | E83: WK042, 730x2015x38, bwh 244 | F83: FSC® cert. Hardwood KOMO | G83: V:RAL7035, vent.sl., isogl., solid/FJ | H83: DEUR | I83: BALKON | J83: BALKON | K83: BS | L83: 042 | O83: Inventory | P83: FSCHW | Q83: TRUE | S83: RAL 7035 | T83: 0 | U83: 0 | V83: 38 | X83: FALSE | Y83: FALSE | Z83: FALSE | AA83: 373.55 | AB83: 452 | AC83: =ROUND(AA83*(1-VLOOKUP(AF83,Discount[],3,0)),2) -> 373.55 | AE83: 18140 | AF83: E065
A84: 8718528345146 | B84: Artikel | C84: 8718528345146 | D84: STUKS | E84: WK042, 730x2115x38, bwh 244 | F84: FSC® cert. Hardwood KOMO | G84: V:RAL7035, vent.sl., isogl., solid/FJ | H84: DEUR | I84: BALKON | J84: BALKON | K84: BS | L84: 042 | O84: Inventory | P84: FSCHW | Q84: TRUE | S84: RAL 7035 | T84: 0 | U84: 0 | V84: 38 | X84: FALSE | Y84: FALSE | Z84: FALSE | AA84: 373.55 | AB84: 452 | AC84: =ROUND(AA84*(1-VLOOKUP(AF84,Discount[],3,0)),2) -> 373.55 | AE84: 18140 | AF84: E065
A85: 8718528345177 | B85: Artikel | C85: 8718528345177 | D85: STUKS | E85: WK042, 780x2015x38, bwh 244 | F85: FSC® cert. Hardwood KOMO | G85: V:RAL7035, vent.sl., isogl., solid/FJ | H85: DEUR | I85: BALKON | J85: BALKON | K85: BS | L85: 042 | O85: Inventory | P85: FSCHW | Q85: TRUE | S85: RAL 7035 | T85: 0 | U85: 0 | V85: 38 | X85: FALSE | Y85: FALSE | Z85: FALSE | AA85: 373.55 | AB85: 452 | AC85: =ROUND(AA85*(1-VLOOKUP(AF85,Discount[],3,0)),2) -> 373.55 | AE85: 18140 | AF85: E065
A86: 8718528345238 | B86: Artikel | C86: 8718528345238 | D86: STUKS | E86: WK042, 780x2115x38, bwh 244 | F86: FSC® cert. Hardwood KOMO | G86: V:RAL7035, vent.sl., isogl., solid/FJ | H86: DEUR | I86: BALKON | J86: BALKON | K86: BS | L86: 042 | O86: Inventory | P86: FSCHW | Q86: TRUE | S86: RAL 7035 | T86: 0 | U86: 0 | V86: 38 | X86: FALSE | Y86: FALSE | Z86: FALSE | AA86: 373.55 | AB86: 452 | AC86: =ROUND(AA86*(1-VLOOKUP(AF86,Discount[],3,0)),2) -> 373.55 | AE86: 18140 | AF86: E065
A87: 8718528024942 | B87: Artikel | C87: 8718528024942 | D87: STUKS | E87: WK043, 830x2015x38, bwh 349 | F87: FSC® cert. Hardwood | G87: V:RAL7035,vent.sl.,isogl.,solid/FJ,FSC Mix 70% CU-COC 800339 | H87: DEUR | I87: BALKON | J87: BALKON | K87: BS | L87: 043 | O87: Inventory | P87: FSCHW | Q87: TRUE | S87: RAL 7035 | T87: 2015 | U87: 830 | V87: 38 | X87: FALSE | Y87: FALSE | Z87: FALSE | AA87: 393.39 | AB87: 476 | AC87: =ROUND(AA87*(1-VLOOKUP(AF87,Discount[],3,0)),2) -> 393.39 | AE87: 18150 | AF87: E065
A88: 8718528024959 | B88: Artikel | C88: 8718528024959 | D88: STUKS | E88: WK043, 830x2115x38, bwh 349 | F88: FSC® cert. Hardwood | G88: V:RAL7035,vent.sl.,isogl.,solid/FJ,FSC Mix 70% CU-COC 800339 | H88: DEUR | I88: BALKON | J88: BALKON | K88: BS | L88: 043 | O88: Inventory | P88: FSCHW | Q88: TRUE | S88: RAL 7035 | T88: 2115 | U88: 830 | V88: 38 | X88: FALSE | Y88: FALSE | Z88: FALSE | AA88: 393.39 | AB88: 476 | AC88: =ROUND(AA88*(1-VLOOKUP(AF88,Discount[],3,0)),2) -> 393.39 | AE88: 18150 | AF88: E065
A89: 8718528024966 | B89: Artikel | C89: 8718528024966 | D89: STUKS | E89: WK043, 880x2015x38, bwh 349 | F89: FSC® cert. Hardwood | G89: V:RAL7035,vent.sl.,isogl.,solid/FJ,FSC Mix 70% CU-COC 800339 | H89: DEUR | I89: BALKON | J89: BALKON | K89: BS | L89: 043 | O89: Inventory | P89: FSCHW | Q89: TRUE | S89: RAL 7035 | T89: 2015 | U89: 880 | V89: 38 | X89: FALSE | Y89: FALSE | Z89: FALSE | AA89: 393.39 | AB89: 476 | AC89: =ROUND(AA89*(1-VLOOKUP(AF89,Discount[],3,0)),2) -> 393.39 | AE89: 18150 | AF89: E065
A90: 8718528024973 | B90: Artikel | C90: 8718528024973 | D90: STUKS | E90: WK043, 880x2115x38, bwh 349 | F90: FSC® cert. Hardwood | G90: V:RAL7035,vent.sl.,isogl.,solid/FJ,FSC Mix 70% CU-COC 800339 | H90: DEUR | I90: BALKON | J90: BALKON | K90: BS | L90: 043 | O90: Inventory | P90: FSCHW | Q90: TRUE | S90: RAL 7035 | T90: 2115 | U90: 880 | V90: 38 | X90: FALSE | Y90: FALSE | Z90: FALSE | AA90: 393.39 | AB90: 476 | AC90: =ROUND(AA90*(1-VLOOKUP(AF90,Discount[],3,0)),2) -> 393.39 | AE90: 18150 | AF90: E065
A91: 8718528024980 | B91: Artikel | C91: 8718528024980 | D91: STUKS | E91: WK043, 930x2015x38, bwh 349 | F91: FSC® cert. Hardwood | G91: V:RAL7035,vent.sl.,isogl.,solid/FJ,FSC Mix 70% CU-COC 800339 | H91: DEUR | I91: BALKON | J91: BALKON | K91: BS | L91: 043 | O91: Inventory | P91: FSCHW | Q91: TRUE | S91: RAL 7035 | T91: 2015 | U91: 930 | V91: 38 | X91: FALSE | Y91: FALSE | Z91: FALSE | AA91: 393.39 | AB91: 476 | AC91: =ROUND(AA91*(1-VLOOKUP(AF91,Discount[],3,0)),2) -> 393.39 | AE91: 18150 | AF91: E065
A92: 8718528024997 | B92: Artikel | C92: 8718528024997 | D92: STUKS | E92: WK043, 930x2115x38, bwh 349 | F92: FSC® cert. Hardwood | G92: V:RAL7035,vent.sl.,isogl.,solid/FJ,FSC Mix 70% CU-COC 800339 | H92: DEUR | I92: BALKON | J92: BALKON | K92: BS | L92: 043 | O92: Inventory | P92: FSCHW | Q92: TRUE | S92: RAL 7035 | T92: 2115 | U92: 930 | V92: 38 | X92: FALSE | Y92: FALSE | Z92: FALSE | AA92: 393.39 | AB92: 476 | AC92: =ROUND(AA92*(1-VLOOKUP(AF92,Discount[],3,0)),2) -> 393.39 | AE92: 18150 | AF92: E065
A93: 8718528219973 | B93: Artikel | C93: 8718528219973 | D93: STUKS | E93: WK043, 830x2115x38, bwh 349 | F93: FSC® cert. Hardwood NON-KOMO | G93: V:RAL7035,vent.sl.,isogl.,solid/FJ,FSC Mix 70% CU-COC 800339 | H93: DEUR | I93: BALKON | J93: BALKON | K93: BS | L93: 043 | O93: Inventory | P93: FSCHW | Q93: TRUE | S93: RAL 7035 | T93: 2115 | U93: 830 | V93: 38 | X93: FALSE | Y93: FALSE | Z93: FALSE | AA93: 393.39 | AB93: 476 | AC93: =ROUND(AA93*(1-VLOOKUP(AF93,Discount[],3,0)),2) -> 393.39 | AE93: 18150 | AF93: E065
A94: 8718528219980 | B94: Artikel | C94: 8718528219980 | D94: STUKS | E94: WK043, 880x2115x38, bwh 349 | F94: FSC® cert. Hardwood NON-KOMO | G94: V:RAL7035,vent.sl.,isogl.,solid/FJ,FSC Mix 70% CU-COC 800339 | H94: DEUR | I94: BALKON | J94: BALKON | K94: BS | L94: 043 | O94: Inventory | P94: FSCHW | Q94: TRUE | S94: RAL 7035 | T94: 2115 | U94: 880 | V94: 38 | X94: FALSE | Y94: FALSE | Z94: FALSE | AA94: 393.39 | AB94: 476 | AC94: =ROUND(AA94*(1-VLOOKUP(AF94,Discount[],3,0)),2) -> 393.39 | AE94: 18150 | AF94: E065
A95: 8718528220665 | B95: Artikel | C95: 8718528220665 | D95: STUKS | E95: WK043, 880x2015x38, bwh 349 | F95: FSC® cert. Hardwood NON-KOMO | G95: V:RAL7035,vent.sl.,isogl.,solid/FJ,FSC Mix 70% CU-COC 800339 | H95: DEUR | I95: BALKON | J95: BALKON | K95: BS | L95: 043 | O95: Inventory | P95: FSCHW | Q95: TRUE | S95: RAL 7035 | T95: 2015 | U95: 880 | V95: 38 | X95: FALSE | Y95: FALSE | Z95: FALSE | AA95: 393.39 | AB95: 476 | AC95: =ROUND(AA95*(1-VLOOKUP(AF95,Discount[],3,0)),2) -> 393.39 | AE95: 18150 | AF95: E065
A96: 8718528220672 | B96: Artikel | C96: 8718528220672 | D96: STUKS | E96: WK043, 930x2015x38, bwh 349 | F96: FSC® cert. Hardwood NON-KOMO | G96: V:RAL7035,vent.sl.,isogl.,solid/FJ,FSC Mix 70% CU-COC 800339 | H96: DEUR | I96: BALKON | J96: BALKON | K96: BS | L96: 043 | O96: Inventory | P96: FSCHW | Q96: TRUE | S96: RAL 7035 | T96: 2015 | U96: 930 | V96: 38 | X96: FALSE | Y96: FALSE | Z96: FALSE | AA96: 393.39 | AB96: 476 | AC96: =ROUND(AA96*(1-VLOOKUP(AF96,Discount[],3,0)),2) -> 393.39 | AE96: 18150 | AF96: E065
A97: 8718528025031 | B97: Artikel | C97: 8718528025031 | D97: STUKS | E97: WK044, 830x2015x38, bwh 454 | F97: FSC® cert. Hardwood | G97: V:RAL7035,vent.sl.,isogl.,solid/FJ,FSC Mix 70% CU-COC 800339 | H97: DEUR | I97: BALKON | J97: BALKON | K97: BS | L97: 044 | O97: Inventory | P97: FSCHW | Q97: TRUE | S97: RAL 7035 | T97: 2015 | U97: 830 | V97: 38 | X97: FALSE | Y97: FALSE | Z97: FALSE | AA97: 412.39 | AB97: 499 | AC97: =ROUND(AA97*(1-VLOOKUP(AF97,Discount[],3,0)),2) -> 412.39 | AE97: 18160 | AF97: E065
A98: 8718528025048 | B98: Artikel | C98: 8718528025048 | D98: STUKS | E98: WK044, 830x2115x38, bwh 454 | F98: FSC® cert. Hardwood | G98: V:RAL7035,vent.sl.,isogl.,solid/FJ,FSC Mix 70% CU-COC 800339 | H98: DEUR | I98: BALKON | J98: BALKON | K98: BS | L98: 044 | O98: Inventory | P98: FSCHW | Q98: TRUE | S98: RAL 7035 | T98: 2115 | U98: 830 | V98: 38 | X98: FALSE | Y98: FALSE | Z98: FALSE | AA98: 412.39 | AB98: 499 | AC98: =ROUND(AA98*(1-VLOOKUP(AF98,Discount[],3,0)),2) -> 412.39 | AE98: 18160 | AF98: E065
A99: 8718528025055 | B99: Artikel | C99: 8718528025055 | D99: STUKS | E99: WK044, 880x2015x38, bwh 454 | F99: FSC® cert. Hardwood | G99: V:RAL7035,vent.sl.,isogl.,solid/FJ,FSC Mix 70% CU-COC 800339 | H99: DEUR | I99: BALKON | J99: BALKON | K99: BS | L99: 044 | O99: Inventory | P99: FSCHW | Q99: TRUE | S99: RAL 7035 | T99: 2015 | U99: 880 | V99: 38 | X99: FALSE | Y99: FALSE | Z99: FALSE | AA99: 412.39 | AB99: 499 | AC99: =ROUND(AA99*(1-VLOOKUP(AF99,Discount[],3,0)),2) -> 412.39 | AE99: 18160 | AF99: E065
A100: 8718528025062 | B100: Artikel | C100: 8718528025062 | D100: STUKS | E100: WK044, 880x2115x38, bwh 454 | F100: FSC® cert. Hardwood | G100: V:RAL7035,vent.sl.,isogl.,solid/FJ,FSC Mix 70% CU-COC 800339 | H100: DEUR | I100: BALKON | J100: BALKON | K100: BS | L100: 044 | O100: Inventory | P100: FSCHW | Q100: TRUE | S100: RAL 7035 | T100: 2115 | U100: 880 | V100: 38 | X100: FALSE | Y100: FALSE | Z100: FALSE | AA100: 412.39 | AB100: 499 | AC100: =ROUND(AA100*(1-VLOOKUP(AF100,Discount[],3,0)),2) -> 412.39 | AE100: 18160 | AF100: E065
A101: 8718528025079 | B101: Artikel | C101: 8718528025079 | D101: STUKS | E101: WK044, 930x2015x38, bwh 454 | F101: FSC® cert. Hardwood | G101: V:RAL7035,vent.sl.,isogl.,solid/FJ,FSC Mix 70% CU-COC 800339 | H101: DEUR | I101: BALKON | J101: BALKON | K101: BS | L101: 044 | O101: Inventory | P101: FSCHW | Q101: TRUE | S101: RAL 7035 | T101: 2015 | U101: 930 | V101: 38 | X101: FALSE | Y101: FALSE | Z101: FALSE | AA101: 412.39 | AB101: 499 | AC101: =ROUND(AA101*(1-VLOOKUP(AF101,Discount[],3,0)),2) -> 412.39 | AE101: 18160 | AF101: E065
A102: 8718528025086 | B102: Artikel | C102: 8718528025086 | D102: STUKS | E102: WK044, 930x2115x38, bwh 454 | F102: FSC® cert. Hardwood | G102: V:RAL7035,vent.sl.,isogl.,solid/FJ,FSC Mix 70% CU-COC 800339 | H102: DEUR | I102: BALKON | J102: BALKON | K102: BS | L102: 044 | O102: Inventory | P102: FSCHW | Q102: TRUE | S102: RAL 7035 | T102: 2115 | U102: 930 | V102: 38 | X102: FALSE | Y102: FALSE | Z102: FALSE | AA102: 412.39 | AB102: 499 | AC102: =ROUND(AA102*(1-VLOOKUP(AF102,Discount[],3,0)),2) -> 412.39 | AE102: 18160 | AF102: E065
A103: 8718528220726 | B103: Artikel | C103: 8718528220726 | D103: STUKS | E103: WK044, 880x2115x38, bwh 454 | F103: FSC® cert. Hardwood NON-KOMO | G103: V:RAL7035,vent.sl.,isogl.,solid/FJ,FSC Mix 70% CU-COC 800339 | H103: DEUR | I103: BALKON | J103: BALKON | K103: BS | L103: 044 | O103: Inventory | P103: FSCHW | Q103: TRUE | S103: RAL 7035 | T103: 2115 | U103: 880 | V103: 38 | X103: FALSE | Y103: FALSE | Z103: FALSE | AA103: 412.39 | AB103: 499 | AC103: =ROUND(AA103*(1-VLOOKUP(AF103,Discount[],3,0)),2) -> 412.39 | AE103: 18160 | AF103: E065
A104: 8718528025123 | B104: Artikel | C104: 8718528025123 | D104: STUKS | E104: WK046, 830x2015x38, bwh 664 | F104: FSC® cert. Hardwood | G104: V:RAL7035,vent.sl.,isogl.,solid/FJ,FSC Mix 70% CU-COC 800339 | H104: DEUR | I104: BALKON | J104: BALKON | K104: BS | L104: 046 | O104: Inventory | P104: FSCHW | Q104: TRUE | S104: RAL 7035 | T104: 2015 | U104: 830 | V104: 38 | X104: FALSE | Y104: FALSE | Z104: FALSE | AA104: 450.41 | AB104: 545 | AC104: =ROUND(AA104*(1-VLOOKUP(AF104,Discount[],3,0)),2) -> 450.41 | AE104: 18170 | AF104: E065
A105: 8718528025130 | B105: Artikel | C105: 8718528025130 | D105: STUKS | E105: WK046, 830x2115x38, bwh 664 | F105: FSC® cert. Hardwood | G105: V:RAL7035,vent.sl.,isogl.,solid/FJ,FSC Mix 70% CU-COC 800339 | H105: DEUR | I105: BALKON | J105: BALKON | K105: BS | L105: 046 | O105: Inventory | P105: FSCHW | Q105: TRUE | S105: RAL 7035 | T105: 2115 | U105: 830 | V105: 38 | X105: FALSE | Y105: FALSE | Z105: FALSE | AA105: 450.41 | AB105: 545 | AC105: =ROUND(AA105*(1-VLOOKUP(AF105,Discount[],3,0)),2) -> 450.41 | AE105: 18170 | AF105: E065
A106: 8718528025147 | B106: Artikel | C106: 8718528025147 | D106: STUKS | E106: WK046, 880x2015x38, bwh 664 | F106: FSC® cert. Hardwood | G106: V:RAL7035,vent.sl.,isogl.,solid/FJ,FSC Mix 70% CU-COC 800339 | H106: DEUR | I106: BALKON | J106: BALKON | K106: BS | L106: 046 | O106: Inventory | P106: FSCHW | Q106: TRUE | S106: RAL 7035 | T106: 2015 | U106: 880 | V106: 38 | X106: FALSE | Y106: FALSE | Z106: FALSE | AA106: 450.41 | AB106: 545 | AC106: =ROUND(AA106*(1-VLOOKUP(AF106,Discount[],3,0)),2) -> 450.41 | AE106: 18170 | AF106: E065
A107: 8718528025154 | B107: Artikel | C107: 8718528025154 | D107: STUKS | E107: WK046, 880x2115x38, bwh 664 | F107: FSC® cert. Hardwood | G107: V:RAL7035,vent.sl.,isogl.,solid/FJ,FSC Mix 70% CU-COC 800339 | H107: DEUR | I107: BALKON | J107: BALKON | K107: BS | L107: 046 | O107: Inventory | P107: FSCHW | Q107: TRUE | S107: RAL 7035 | T107: 2115 | U107: 880 | V107: 38 | X107: FALSE | Y107: FALSE | Z107: FALSE | AA107: 450.41 | AB107: 545 | AC107: =ROUND(AA107*(1-VLOOKUP(AF107,Discount[],3,0)),2) -> 450.41 | AE107: 18170 | AF107: E065
A108: 8718528025161 | B108: Artikel | C108: 8718528025161 | D108: STUKS | E108: WK046, 930x2015x38, bwh 664 | F108: FSC® cert. Hardwood | G108: V:RAL7035,vent.sl.,isogl.,solid/FJ,FSC Mix 70% CU-COC 800339 | H108: DEUR | I108: BALKON | J108: BALKON | K108: BS | L108: 046 | O108: Inventory | P108: FSCHW | Q108: TRUE | S108: RAL 7035 | T108: 2015 | U108: 930 | V108: 38 | X108: FALSE | Y108: FALSE | Z108: FALSE | AA108: 450.41 | AB108: 545 | AC108: =ROUND(AA108*(1-VLOOKUP(AF108,Discount[],3,0)),2) -> 450.41 | AE108: 18170 | AF108: E065
A109: 8718528025178 | B109: Artikel | C109: 8718528025178 | D109: STUKS | E109: WK046, 930x2115x38, bwh 664 | F109: FSC® cert. Hardwood | G109: V:RAL7035,vent.sl.,isogl.,solid/FJ,FSC Mix 70% CU-COC 800339 | H109: DEUR | I109: BALKON | J109: BALKON | K109: BS | L109: 046 | O109: Inventory | P109: FSCHW | Q109: TRUE | S109: RAL 7035 | T109: 2115 | U109: 930 | V109: 38 | X109: FALSE | Y109: FALSE | Z109: FALSE | AA109: 450.41 | AB109: 545 | AC109: =ROUND(AA109*(1-VLOOKUP(AF109,Discount[],3,0)),2) -> 450.41 | AE109: 18170 | AF109: E065
A110: 8718528220771 | B110: Artikel | C110: 8718528220771 | D110: STUKS | E110: WK046, 880x2115x38, bwh 664 | F110: FSC® cert. Hardwood NON-KOMO | G110: V:RAL7035,vent.sl.,isogl.,solid/FJ,FSC Mix 70% CU-COC 800339 | H110: DEUR | I110: BALKON | J110: BALKON | K110: BS | L110: 046 | O110: Inventory | P110: FSCHW | Q110: TRUE | S110: RAL 7035 | T110: 2115 | U110: 880 | V110: 38 | X110: FALSE | Y110: FALSE | Z110: FALSE | AA110: 450.41 | AB110: 545 | AC110: =ROUND(AA110*(1-VLOOKUP(AF110,Discount[],3,0)),2) -> 450.41 | AE110: 18170 | AF110: E065
A111: 8718528025208 | B111: Artikel | C111: 8718528025208 | D111: STUKS | E111: WK048, 830x2015x38, bwh 874 | F111: FSC® cert. Hardwood | G111: V:RAL7035,vent.sl.,isogl.,solid/FJ,FSC Mix 70% CU-COC 800339 | H111: DEUR | I111: BALKON | J111: BALKON | K111: BS | L111: 048 | O111: Inventory | P111: FSCHW | Q111: TRUE | S111: RAL 7035 | T111: 2015 | U111: 830 | V111: 38 | X111: FALSE | Y111: FALSE | Z111: FALSE | AA111: 486.77 | AB111: 589 | AC111: =ROUND(AA111*(1-VLOOKUP(AF111,Discount[],3,0)),2) -> 486.77 | AE111: 18180 | AF111: E065
A112: 8718528025215 | B112: Artikel | C112: 8718528025215 | D112: STUKS | E112: WK048, 830x2115x38, bwh 874 | F112: FSC® cert. Hardwood | G112: V:RAL7035,vent.sl.,isogl.,solid/FJ,FSC Mix 70% CU-COC 800339 | H112: DEUR | I112: BALKON | J112: BALKON | K112: BS | L112: 048 | O112: Inventory | P112: FSCHW | Q112: TRUE | S112: RAL 7035 | T112: 2115 | U112: 830 | V112: 38 | X112: FALSE | Y112: FALSE | Z112: FALSE | AA112: 486.77 | AB112: 589 | AC112: =ROUND(AA112*(1-VLOOKUP(AF112,Discount[],3,0)),2) -> 486.77 | AE112: 18180 | AF112: E065
A113: 8718528025222 | B113: Artikel | C113: 8718528025222 | D113: STUKS | E113: WK048, 880x2015x38, bwh 874 | F113: FSC® cert. Hardwood | G113: V:RAL7035,vent.sl.,isogl.,solid/FJ,FSC Mix 70% CU-COC 800339 | H113: DEUR | I113: BALKON | J113: BALKON | K113: BS | L113: 048 | O113: Inventory | P113: FSCHW | Q113: TRUE | S113: RAL 7035 | T113: 2015 | U113: 880 | V113: 38 | X113: FALSE | Y113: FALSE | Z113: FALSE | AA113: 486.77 | AB113: 589 | AC113: =ROUND(AA113*(1-VLOOKUP(AF113,Discount[],3,0)),2) -> 486.77 | AE113: 18180 | AF113: E065
A114: 8718528025239 | B114: Artikel | C114: 8718528025239 | D114: STUKS | E114: WK048, 880x2115x38, bwh 874 | F114: FSC® cert. Hardwood | G114: V:RAL7035,vent.sl.,isogl.,solid/FJ,FSC Mix 70% CU-COC 800339 | H114: DEUR | I114: BALKON | J114: BALKON | K114: BS | L114: 048 | O114: Inventory | P114: FSCHW | Q114: TRUE | S114: RAL 7035 | T114: 2115 | U114: 880 | V114: 38 | X114: FALSE | Y114: FALSE | Z114: FALSE | AA114: 486.77 | AB114: 589 | AC114: =ROUND(AA114*(1-VLOOKUP(AF114,Discount[],3,0)),2) -> 486.77 | AE114: 18180 | AF114: E065
A115: 8718528025246 | B115: Artikel | C115: 8718528025246 | D115: STUKS | E115: WK048, 930x2015x38, bwh 874 | F115: FSC® cert. Hardwood | G115: V:RAL7035,vent.sl.,isogl.,solid/FJ,FSC Mix 70% CU-COC 800339 | H115: DEUR | I115: BALKON | J115: BALKON | K115: BS | L115: 048 | O115: Inventory | P115: FSCHW | Q115: TRUE | S115: RAL 7035 | T115: 2015 | U115: 930 | V115: 38 | X115: FALSE | Y115: FALSE | Z115: FALSE | AA115: 486.77 | AB115: 589 | AC115: =ROUND(AA115*(1-VLOOKUP(AF115,Discount[],3,0)),2) -> 486.77 | AE115: 18180 | AF115: E065
A116: 8718528025253 | B116: Artikel | C116: 8718528025253 | D116: STUKS | E116: WK048, 930x2115x38, bwh 874 | F116: FSC® cert. Hardwood | G116: V:RAL7035,vent.sl.,isogl.,solid/FJ,FSC Mix 70% CU-COC 800339 | H116: DEUR | I116: BALKON | J116: BALKON | K116: BS | L116: 048 | O116: Inventory | P116: FSCHW | Q116: TRUE | S116: RAL 7035 | T116: 2115 | U116: 930 | V116: 38 | X116: FALSE | Y116: FALSE | Z116: FALSE | AA116: 486.77 | AB116: 589 | AC116: =ROUND(AA116*(1-VLOOKUP(AF116,Discount[],3,0)),2) -> 486.77 | AE116: 18180 | AF116: E065
A117: 8718528220832 | B117: Artikel | C117: 8718528220832 | D117: STUKS | E117: WK048, 930x2015x38, bwh 874 | F117: FSC® cert. Hardwood NON-KOMO | G117: V:RAL7035,vent.sl.,isogl.,solid/FJ,FSC Mix 70% CU-COC 800339 | H117: DEUR | I117: BALKON | J117: BALKON | K117: BS | L117: 048 | O117: Inventory | P117: FSCHW | Q117: TRUE | S117: RAL 7035 | T117: 2015 | U117: 930 | V117: 38 | X117: FALSE | Y117: FALSE | Z117: FALSE | AA117: 486.77 | AB117: 589 | AC117: =ROUND(AA117*(1-VLOOKUP(AF117,Discount[],3,0)),2) -> 486.77 | AE117: 18180 | AF117: E065
A118: 8718528219850 | B118: Artikel | C118: 8718528219850 | D118: STUKS | E118: WK042XL, 930x2340x38, bwh 269 | F118: PEFC-CS PHW, NON-KOMO | G118: V:RAL9010, vent.sl., isogl., solid/FJ | H118: DEUR | I118: BALKON | J118: BALKON | K118: BS | L118: 042 | O118: Inventory | P118: PHW | Q118: FALSE | S118: RAL 9010 | T118: 2340 | U118: 930 | V118: 38 | X118: TRUE | Y118: FALSE | Z118: FALSE | AA118: 445.45 | AB118: 539 | AC118: =ROUND(AA118*(1-VLOOKUP(AF118,Discount[],3,0)),2) -> 445.45 | AE118: 18240 | AF118: E055
A119: 8718528220375 | B119: Artikel | C119: 8718528220375 | D119: STUKS | E119: WK042XL, 830x2340x38, bwh 269 | F119: PEFC-CS PHW, NON-KOMO | G119: V:RAL9010, vent.sl., isogl., solid/FJ | H119: DEUR | I119: BALKON | J119: BALKON | K119: BS | L119: 042 | O119: Inventory | P119: PHW | Q119: FALSE | S119: RAL 9010 | T119: 2340 | U119: 830 | V119: 38 | X119: TRUE | Y119: FALSE | Z119: FALSE | AA119: 445.45 | AB119: 539 | AC119: =ROUND(AA119*(1-VLOOKUP(AF119,Discount[],3,0)),2) -> 445.45 | AE119: 18240 | AF119: E055
A120: 8718528022849 | B120: Artikel | C120: 8718528022849 | D120: STUKS | E120: WK043XL, 830x2340x38, bwh 374 | F120: PEFC-CS PHW | G120: V:RAL9010, vent.sl., isogl., solid/FJ | H120: DEUR | I120: BALKON | J120: BALKON | K120: BS | L120: 043 | O120: Inventory | P120: PHW | Q120: FALSE | S120: RAL 9010 | T120: 2340 | U120: 830 | V120: 38 | X120: TRUE | Y120: FALSE | Z120: FALSE | AA120: 464.46 | AB120: 562 | AC120: =ROUND(AA120*(1-VLOOKUP(AF120,Discount[],3,0)),2) -> 464.46 | AE120: 18250 | AF120: E055
A121: 8718528023037 | B121: Artikel | C121: 8718528023037 | D121: STUKS | E121: WK043XL, 930x2340x38, bwh 374 | F121: PEFC-CS PHW | G121: V:RAL9010, vent.sl., isogl., solid/FJ | H121: DEUR | I121: BALKON | J121: BALKON | K121: BS | L121: 043 | O121: Inventory | P121: PHW | Q121: FALSE | S121: RAL 9010 | T121: 2340 | U121: 930 | V121: 38 | X121: TRUE | Y121: FALSE | Z121: FALSE | AA121: 464.46 | AB121: 562 | AC121: =ROUND(AA121*(1-VLOOKUP(AF121,Discount[],3,0)),2) -> 464.46 | AE121: 18250 | AF121: E055
A122: 8718528220276 | B122: Artikel | C122: 8718528220276 | D122: STUKS | E122: WK043XL, 880x2340x38, bwh 374 | F122: PEFC-CS PHW, NON-KOMO | G122: V:RAL9010, vent.sl., isogl., solid/FJ | H122: DEUR | I122: BALKON | J122: BALKON | K122: BS | L122: 043 | O122: Inventory | P122: PHW | Q122: FALSE | S122: RAL 9010 | T122: 2340 | U122: 880 | V122: 38 | X122: TRUE | Y122: FALSE | Z122: FALSE | AA122: 464.46 | AB122: 562 | AC122: =ROUND(AA122*(1-VLOOKUP(AF122,Discount[],3,0)),2) -> 464.46 | AE122: 18250 | AF122: E055
A123: 8718528023945 | B123: Artikel | C123: 8718528023945 | D123: STUKS | E123: WK044XL, 830x2340x38, bwh 479 | F123: PEFC-CS PHW | G123: V:RAL9010, vent.sl., isogl., solid/FJ | H123: DEUR | I123: BALKON | J123: BALKON | K123: BS | L123: 044 | O123: Inventory | P123: PHW | Q123: FALSE | S123: RAL 9010 | T123: 2340 | U123: 830 | V123: 38 | X123: TRUE | Y123: FALSE | Z123: FALSE | AA123: 485.95 | AB123: 588 | AC123: =ROUND(AA123*(1-VLOOKUP(AF123,Discount[],3,0)),2) -> 485.95 | AE123: 18260 | AF123: E055
A124: 8718528023952 | B124: Artikel | C124: 8718528023952 | D124: STUKS | E124: WK044XL, 880x2340x38, bwh 479 | F124: PEFC-CS PHW | G124: V:RAL9010, vent.sl., isogl., solid/FJ | H124: DEUR | I124: BALKON | J124: BALKON | K124: BS | L124: 044 | O124: Inventory | P124: PHW | Q124: FALSE | S124: RAL 9010 | T124: 2340 | U124: 880 | V124: 38 | X124: TRUE | Y124: FALSE | Z124: FALSE | AA124: 485.95 | AB124: 588 | AC124: =ROUND(AA124*(1-VLOOKUP(AF124,Discount[],3,0)),2) -> 485.95 | AE124: 18260 | AF124: E055
A125: 8718528023990 | B125: Artikel | C125: 8718528023990 | D125: STUKS | E125: WK046XL, 880x2340x38, bwh 689 | F125: PEFC-CS PHW | G125: V:RAL9010, vent.sl., isogl., solid/FJ | H125: DEUR | I125: BALKON | J125: BALKON | K125: BS | L125: 046 | O125: Inventory | P125: PHW | Q125: FALSE | S125: RAL 9010 | T125: 2340 | U125: 880 | V125: 38 | X125: TRUE | Y125: FALSE | Z125: FALSE | AA125: 525.62 | AB125: 636 | AC125: =ROUND(AA125*(1-VLOOKUP(AF125,Discount[],3,0)),2) -> 525.62 | AE125: 18270 | AF125: E055
A126: 8718528023471 | B126: Artikel | C126: 8718528023471 | D126: STUKS | E126: WK048XL, 880x2340x38, bwh 899 | F126: PEFC-CS PHW | G126: V:RAL9010, vent.sl., isogl., solid/FJ | H126: DEUR | I126: BALKON | J126: BALKON | K126: BS | L126: 048 | O126: Inventory | P126: PHW | Q126: FALSE | S126: RAL 9010 | T126: 2340 | U126: 880 | V126: 38 | X126: TRUE | Y126: FALSE | Z126: FALSE | AA126: 562.81 | AB126: 681 | AC126: =ROUND(AA126*(1-VLOOKUP(AF126,Discount[],3,0)),2) -> 562.81 | AE126: 18280 | AF126: E055
A127: 8718528220245 | B127: Artikel | C127: 8718528220245 | D127: STUKS | E127: WK048XL, 930x2340x38, bwh 899 | F127: PEFC-CS PHW, NON-KOMO | G127: V:RAL9010, vent.sl., isogl., solid/FJ | H127: DEUR | I127: BALKON | J127: BALKON | K127: BS | L127: 048 | O127: Inventory | P127: PHW | Q127: FALSE | S127: RAL 9010 | T127: 2340 | U127: 930 | V127: 38 | X127: TRUE | Y127: FALSE | Z127: FALSE | AA127: 562.81 | AB127: 681 | AC127: =ROUND(AA127*(1-VLOOKUP(AF127,Discount[],3,0)),2) -> 562.81 | AE127: 18280 | AF127: E055
A128: 8718528220429 | B128: Artikel | C128: 8718528220429 | D128: STUKS | E128: WK048XL, 880x2340x38, bwh 899 | F128: PEFC-CS PHW, NON-KOMO | G128: V:RAL9010, vent.sl., isogl., solid/FJ | H128: DEUR | I128: BALKON | J128: BALKON | K128: BS | L128: 048 | O128: Inventory | P128: PHW | Q128: FALSE | S128: RAL 9010 | T128: 2340 | U128: 880 | V128: 38 | X128: TRUE | Y128: FALSE | Z128: FALSE | AA128: 562.81 | AB128: 681 | AC128: =ROUND(AA128*(1-VLOOKUP(AF128,Discount[],3,0)),2) -> 562.81 | AE128: 18280 | AF128: E055
A129: 8718528025345 | B129: Artikel | C129: 8718528025345 | D129: STUKS | E129: WK042XL, 830x2340x38, bwh 269 | F129: FSC® cert. Premium Hardwood | G129: V:RAL9010, vent.sl., isogl., FSC Mix 70% CU-COC 800339 | H129: DEUR | I129: BALKON | J129: BALKON | K129: BS | L129: 042 | O129: Inventory | P129: FSCPHW | Q129: TRUE | S129: RAL 9010 | T129: 2340 | U129: 830 | V129: 38 | X129: TRUE | Y129: FALSE | Z129: FALSE | AA129: 500.82 | AB129: 606 | AC129: =ROUND(AA129*(1-VLOOKUP(AF129,Discount[],3,0)),2) -> 500.82 | AE129: 18290 | AF129: E075
A130: 8718528025352 | B130: Artikel | C130: 8718528025352 | D130: STUKS | E130: WK042XL, 880x2340x38, bwh 269 | F130: FSC® cert. Premium Hardwood | G130: V:RAL9010, vent.sl., isogl., FSC Mix 70% CU-COC 800339 | H130: DEUR | I130: BALKON | J130: BALKON | K130: BS | L130: 042 | O130: Inventory | P130: FSCPHW | Q130: TRUE | S130: RAL 9010 | T130: 2340 | U130: 880 | V130: 38 | X130: TRUE | Y130: FALSE | Z130: FALSE | AA130: 500.82 | AB130: 606 | AC130: =ROUND(AA130*(1-VLOOKUP(AF130,Discount[],3,0)),2) -> 500.82 | AE130: 18290 | AF130: E075
A131: 8718528025369 | B131: Artikel | C131: 8718528025369 | D131: STUKS | E131: WK042XL, 930x2340x38, bwh 269 | F131: FSC® cert. Premium Hardwood | G131: V:RAL9010, vent.sl., isogl., FSC Mix 70% CU-COC 800339 | H131: DEUR | I131: BALKON | J131: BALKON | K131: BS | L131: 042 | O131: Inventory | P131: FSCPHW | Q131: TRUE | S131: RAL 9010 | T131: 2340 | U131: 930 | V131: 38 | X131: TRUE | Y131: FALSE | Z131: FALSE | AA131: 500.82 | AB131: 606 | AC131: =ROUND(AA131*(1-VLOOKUP(AF131,Discount[],3,0)),2) -> 500.82 | AE131: 18290 | AF131: E075
A132: 8718528024584 | B132: Artikel | C132: 8718528024584 | D132: STUKS | E132: WK043XL, 830x2340x38, bwh 374 | F132: FSC® cert. Premium Hardwood | G132: V:RAL9010, vent.sl., isogl., FSC Mix 70% CU-COC 800339 | H132: DEUR | I132: BALKON | J132: BALKON | K132: BS | L132: 043 | O132: Inventory | P132: FSCPHW | Q132: TRUE | S132: RAL 9010 | T132: 2340 | U132: 830 | V132: 38 | X132: TRUE | Y132: FALSE | Z132: FALSE | AA132: 523.14 | AB132: 633 | AC132: =ROUND(AA132*(1-VLOOKUP(AF132,Discount[],3,0)),2) -> 523.14 | AE132: 18300 | AF132: E075
A133: 8718528024591 | B133: Artikel | C133: 8718528024591 | D133: STUKS | E133: WK043XL, 880x2340x38, bwh 374 | F133: FSC® cert. Premium Hardwood | G133: V:RAL9010, vent.sl., isogl., FSC Mix 70% CU-COC 800339 | H133: DEUR | I133: BALKON | J133: BALKON | K133: BS | L133: 043 | O133: Inventory | P133: FSCPHW | Q133: TRUE | S133: RAL 9010 | T133: 2340 | U133: 880 | V133: 38 | X133: TRUE | Y133: FALSE | Z133: FALSE | AA133: 523.14 | AB133: 633 | AC133: =ROUND(AA133*(1-VLOOKUP(AF133,Discount[],3,0)),2) -> 523.14 | AE133: 18300 | AF133: E075
A134: 8718528024607 | B134: Artikel | C134: 8718528024607 | D134: STUKS | E134: WK043XL, 930x2340x38, bwh 374 | F134: FSC® cert. Premium Hardwood | G134: V:RAL9010, vent.sl., isogl., FSC Mix 70% CU-COC 800339 | H134: DEUR | I134: BALKON | J134: BALKON | K134: BS | L134: 043 | O134: Inventory | P134: FSCPHW | Q134: TRUE | S134: RAL 9010 | T134: 2340 | U134: 930 | V134: 38 | X134: TRUE | Y134: FALSE | Z134: FALSE | AA134: 523.14 | AB134: 633 | AC134: =ROUND(AA134*(1-VLOOKUP(AF134,Discount[],3,0)),2) -> 523.14 | AE134: 18300 | AF134: E075
A135: 8718528025437 | B135: Artikel | C135: 8718528025437 | D135: STUKS | E135: WK044XL, 830x2340x38, bwh 479 | F135: FSC® cert. Premium Hardwood | G135: V:RAL9010, vent.sl., isogl., FSC Mix 70% CU-COC 800339 | H135: DEUR | I135: BALKON | J135: BALKON | K135: BS | L135: 044 | O135: Inventory | P135: FSCPHW | Q135: TRUE | S135: RAL 9010 | T135: 2340 | U135: 830 | V135: 38 | X135: TRUE | Y135: FALSE | Z135: FALSE | AA135: 547.1 | AB135: 662 | AC135: =ROUND(AA135*(1-VLOOKUP(AF135,Discount[],3,0)),2) -> 547.1 | AE135: 18310 | AF135: E075
A136: 8718528025444 | B136: Artikel | C136: 8718528025444 | D136: STUKS | E136: WK044XL, 880x2340x38, bwh 479 | F136: FSC® cert. Premium Hardwood | G136: V:RAL9010, vent.sl., isogl., FSC Mix 70% CU-COC 800339 | H136: DEUR | I136: BALKON | J136: BALKON | K136: BS | L136: 044 | O136: Inventory | P136: FSCPHW | Q136: TRUE | S136: RAL 9010 | T136: 2340 | U136: 880 | V136: 38 | X136: TRUE | Y136: FALSE | Z136: FALSE | AA136: 547.1 | AB136: 662 | AC136: =ROUND(AA136*(1-VLOOKUP(AF136,Discount[],3,0)),2) -> 547.1 | AE136: 18310 | AF136: E075
A137: 8718528025451 | B137: Artikel | C137: 8718528025451 | D137: STUKS | E137: WK044XL, 930x2340x38, bwh 479 | F137: FSC® cert. Premium Hardwood | G137: V:RAL9010, vent.sl., isogl., FSC Mix 70% CU-COC 800339 | H137: DEUR | I137: BALKON | J137: BALKON | K137: BS | L137: 044 | O137: Inventory | P137: FSCPHW | Q137: TRUE | S137: RAL 9010 | T137: 2340 | U137: 930 | V137: 38 | X137: TRUE | Y137: FALSE | Z137: FALSE | AA137: 547.1 | AB137: 662 | AC137: =ROUND(AA137*(1-VLOOKUP(AF137,Discount[],3,0)),2) -> 547.1 | AE137: 18310 | AF137: E075
A138: 8718528024676 | B138: Artikel | C138: 8718528024676 | D138: STUKS | E138: WK046XL, 880x2340x38, bwh 689 | F138: FSC® cert. Premium Hardwood | G138: V:RAL9010, vent.sl., isogl., FSC Mix 70% CU-COC 800339 | H138: DEUR | I138: BALKON | J138: BALKON | K138: BS | L138: 046 | O138: Inventory | P138: FSCPHW | Q138: TRUE | S138: RAL 9010 | T138: 2340 | U138: 880 | V138: 38 | X138: TRUE | Y138: FALSE | Z138: FALSE | AA138: 592.56 | AB138: 717 | AC138: =ROUND(AA138*(1-VLOOKUP(AF138,Discount[],3,0)),2) -> 592.56 | AE138: 18320 | AF138: E075
A139: 8718528024683 | B139: Artikel | C139: 8718528024683 | D139: STUKS | E139: WK046XL, 930x2340x38, bwh 689 | F139: FSC® cert. Premium Hardwood | G139: V:RAL9010, vent.sl., isogl., FSC Mix 70% CU-COC 800339 | H139: DEUR | I139: BALKON | J139: BALKON | K139: BS | L139: 046 | O139: Inventory | P139: FSCPHW | Q139: TRUE | S139: RAL 9010 | T139: 2340 | U139: 930 | V139: 38 | X139: TRUE | Y139: FALSE | Z139: FALSE | AA139: 592.56 | AB139: 717 | AC139: =ROUND(AA139*(1-VLOOKUP(AF139,Discount[],3,0)),2) -> 592.56 | AE139: 18320 | AF139: E075
A140: 8718528024751 | B140: Artikel | C140: 8718528024751 | D140: STUKS | E140: WK048XL, 880x2340x38, bwh 899 | F140: FSC® cert. Premium Hardwood | G140: V:RAL9010, vent.sl., isogl., FSC Mix 70% CU-COC 800339 | H140: DEUR | I140: BALKON | J140: BALKON | K140: BS | L140: 048 | O140: Inventory | P140: FSCPHW | Q140: TRUE | S140: RAL 9010 | T140: 2340 | U140: 880 | V140: 38 | X140: TRUE | Y140: FALSE | Z140: FALSE | AA140: 638.01 | AB140: 772 | AC140: =ROUND(AA140*(1-VLOOKUP(AF140,Discount[],3,0)),2) -> 638.01 | AE140: 18330 | AF140: E075
A141: 8718528024768 | B141: Artikel | C141: 8718528024768 | D141: STUKS | E141: WK048XL, 930x2340x38, bwh 899 | F141: FSC® cert. Premium Hardwood | G141: V:RAL9010, vent.sl., isogl., FSC Mix 70% CU-COC 800339 | H141: DEUR | I141: BALKON | J141: BALKON | K141: BS | L141: 048 | O141: Inventory | P141: FSCPHW | Q141: TRUE | S141: RAL 9010 | T141: 2340 | U141: 930 | V141: 38 | X141: TRUE | Y141: FALSE | Z141: FALSE | AA141: 638.01 | AB141: 772 | AC141: =ROUND(AA141*(1-VLOOKUP(AF141,Discount[],3,0)),2) -> 638.01 | AE141: 18330 | AF141: E075
A142: 8718528024911 | B142: Artikel | C142: 8718528024911 | D142: STUKS | E142: WK042XL, 830x2340x38, bwh 269 | F142: FSC® cert. Hardwood | G142: V:RAL7035,vent.sl.,isogl.,solid/FJ,FSC Mix 70% CU-COC 800339 | H142: DEUR | I142: BALKON | J142: BALKON | K142: BS | L142: 042 | O142: Inventory | P142: FSCHW | Q142: TRUE | S142: RAL 7035 | T142: 2340 | U142: 830 | V142: 38 | X142: TRUE | Y142: FALSE | Z142: FALSE | AA142: 419.01 | AB142: 507 | AC142: =ROUND(AA142*(1-VLOOKUP(AF142,Discount[],3,0)),2) -> 419.01 | AE142: 18340 | AF142: E065
A143: 8718528024928 | B143: Artikel | C143: 8718528024928 | D143: STUKS | E143: WK042XL, 880x2340x38, bwh 269 | F143: FSC® cert. Hardwood | G143: V:RAL7035,vent.sl.,isogl.,solid/FJ,FSC Mix 70% CU-COC 800339 | H143: DEUR | I143: BALKON | J143: BALKON | K143: BS | L143: 042 | O143: Inventory | P143: FSCHW | Q143: TRUE | S143: RAL 7035 | T143: 2340 | U143: 880 | V143: 38 | X143: TRUE | Y143: FALSE | Z143: FALSE | AA143: 419.01 | AB143: 507 | AC143: =ROUND(AA143*(1-VLOOKUP(AF143,Discount[],3,0)),2) -> 419.01 | AE143: 18340 | AF143: E065
A144: 8718528024935 | B144: Artikel | C144: 8718528024935 | D144: STUKS | E144: WK042XL, 930x2340x38, bwh 269 | F144: FSC® cert. Hardwood | G144: V:RAL7035,vent.sl.,isogl.,solid/FJ,FSC Mix 70% CU-COC 800339 | H144: DEUR | I144: BALKON | J144: BALKON | K144: BS | L144: 042 | O144: Inventory | P144: FSCHW | Q144: TRUE | S144: RAL 7035 | T144: 2340 | U144: 930 | V144: 38 | X144: TRUE | Y144: FALSE | Z144: FALSE | AA144: 419.01 | AB144: 507 | AC144: =ROUND(AA144*(1-VLOOKUP(AF144,Discount[],3,0)),2) -> 419.01 | AE144: 18340 | AF144: E065
A145: 8718528025000 | B145: Artikel | C145: 8718528025000 | D145: STUKS | E145: WK043XL, 830x2340x38, bwh 374 | F145: FSC® cert. Hardwood | G145: V:RAL7035,vent.sl.,isogl.,solid/FJ,FSC Mix 70% CU-COC 800339 | H145: DEUR | I145: BALKON | J145: BALKON | K145: BS | L145: 043 | O145: Inventory | P145: FSCHW | Q145: TRUE | S145: RAL 7035 | T145: 2340 | U145: 830 | V145: 38 | X145: TRUE | Y145: FALSE | Z145: FALSE | AA145: 436.36 | AB145: 528 | AC145: =ROUND(AA145*(1-VLOOKUP(AF145,Discount[],3,0)),2) -> 436.36 | AE145: 18350 | AF145: E065
A146: 8718528025017 | B146: Artikel | C146: 8718528025017 | D146: STUKS | E146: WK043XL, 880x2340x38, bwh 374 | F146: FSC® cert. Hardwood | G146: V:RAL7035,vent.sl.,isogl.,solid/FJ,FSC Mix 70% CU-COC 800339 | H146: DEUR | I146: BALKON | J146: BALKON | K146: BS | L146: 043 | O146: Inventory | P146: FSCHW | Q146: TRUE | S146: RAL 7035 | T146: 2340 | U146: 880 | V146: 38 | X146: TRUE | Y146: FALSE | Z146: FALSE | AA146: 436.36 | AB146: 528 | AC146: =ROUND(AA146*(1-VLOOKUP(AF146,Discount[],3,0)),2) -> 436.36 | AE146: 18350 | AF146: E065
A147: 8718528025024 | B147: Artikel | C147: 8718528025024 | D147: STUKS | E147: WK043XL, 930x2340x38, bwh 374 | F147: FSC® cert. Hardwood | G147: V:RAL7035,vent.sl.,isogl.,solid/FJ,FSC Mix 70% CU-COC 800339 | H147: DEUR | I147: BALKON | J147: BALKON | K147: BS | L147: 043 | O147: Inventory | P147: FSCHW | Q147: TRUE | S147: RAL 7035 | T147: 2340 | U147: 930 | V147: 38 | X147: TRUE | Y147: FALSE | Z147: FALSE | AA147: 436.36 | AB147: 528 | AC147: =ROUND(AA147*(1-VLOOKUP(AF147,Discount[],3,0)),2) -> 436.36 | AE147: 18350 | AF147: E065
A148: 8718528025093 | B148: Artikel | C148: 8718528025093 | D148: STUKS | E148: WK044XL, 830x2340x38, bwh 479 | F148: FSC® cert. Hardwood | G148: V:RAL7035,vent.sl.,isogl.,solid/FJ,FSC Mix 70% CU-COC 800339 | H148: DEUR | I148: BALKON | J148: BALKON | K148: BS | L148: 044 | O148: Inventory | P148: FSCHW | Q148: TRUE | S148: RAL 7035 | T148: 2340 | U148: 830 | V148: 38 | X148: TRUE | Y148: FALSE | Z148: FALSE | AA148: 455.37 | AB148: 551 | AC148: =ROUND(AA148*(1-VLOOKUP(AF148,Discount[],3,0)),2) -> 455.37 | AE148: 18360 | AF148: E065
A149: 8718528025109 | B149: Artikel | C149: 8718528025109 | D149: STUKS | E149: WK044XL, 880x2340x38, bwh 479 | F149: FSC® cert. Hardwood | G149: V:RAL7035,vent.sl.,isogl.,solid/FJ,FSC Mix 70% CU-COC 800339 | H149: DEUR | I149: BALKON | J149: BALKON | K149: BS | L149: 044 | O149: Inventory | P149: FSCHW | Q149: TRUE | S149: RAL 7035 | T149: 2340 | U149: 880 | V149: 38 | X149: TRUE | Y149: FALSE | Z149: FALSE | AA149: 455.37 | AB149: 551 | AC149: =ROUND(AA149*(1-VLOOKUP(AF149,Discount[],3,0)),2) -> 455.37 | AE149: 18360 | AF149: E065
A150: 8718528025116 | B150: Artikel | C150: 8718528025116 | D150: STUKS | E150: WK044XL, 930x2340x38, bwh 479 | F150: FSC® cert. Hardwood | G150: V:RAL7035,vent.sl.,isogl.,solid/FJ,FSC Mix 70% CU-COC 800339 | H150: DEUR | I150: BALKON | J150: BALKON | K150: BS | L150: 044 | O150: Inventory | P150: FSCHW | Q150: TRUE | S150: RAL 7035 | T150: 2340 | U150: 930 | V150: 38 | X150: TRUE | Y150: FALSE | Z150: FALSE | AA150: 455.37 | AB150: 551 | AC150: =ROUND(AA150*(1-VLOOKUP(AF150,Discount[],3,0)),2) -> 455.37 | AE150: 18360 | AF150: E065
A151: 8718528025185 | B151: Artikel | C151: 8718528025185 | D151: STUKS | E151: WK046XL, 880x2340x38, bwh 689 | F151: FSC® cert. Hardwood | G151: V:RAL7035,vent.sl.,isogl.,solid/FJ,FSC Mix 70% CU-COC 800339 | H151: DEUR | I151: BALKON | J151: BALKON | K151: BS | L151: 046 | O151: Inventory | P151: FSCHW | Q151: TRUE | S151: RAL 7035 | T151: 2340 | U151: 880 | V151: 38 | X151: TRUE | Y151: FALSE | Z151: FALSE | AA151: 494.21 | AB151: 598 | AC151: =ROUND(AA151*(1-VLOOKUP(AF151,Discount[],3,0)),2) -> 494.21 | AE151: 18370 | AF151: E065
A152: 8718528025192 | B152: Artikel | C152: 8718528025192 | D152: STUKS | E152: WK046XL, 930x2340x38, bwh 689 | F152: FSC® cert. Hardwood | G152: V:RAL7035,vent.sl.,isogl.,solid/FJ,FSC Mix 70% CU-COC 800339 | H152: DEUR | I152: BALKON | J152: BALKON | K152: BS | L152: 046 | O152: Inventory | P152: FSCHW | Q152: TRUE | S152: RAL 7035 | T152: 2340 | U152: 930 | V152: 38 | X152: TRUE | Y152: FALSE | Z152: FALSE | AA152: 494.21 | AB152: 598 | AC152: =ROUND(AA152*(1-VLOOKUP(AF152,Discount[],3,0)),2) -> 494.21 | AE152: 18370 | AF152: E065
A153: 8718528025260 | B153: Artikel | C153: 8718528025260 | D153: STUKS | E153: WK048XL, 880x2340x38, bwh 899 | F153: FSC® cert. Hardwood | G153: V:RAL7035,vent.sl.,isogl.,solid/FJ,FSC Mix 70% CU-COC 800339 | H153: DEUR | I153: BALKON | J153: BALKON | K153: BS | L153: 048 | O153: Inventory | P153: FSCHW | Q153: TRUE | S153: RAL 7035 | T153: 2340 | U153: 880 | V153: 38 | X153: TRUE | Y153: FALSE | Z153: FALSE | AA153: 533.06 | AB153: 645 | AC153: =ROUND(AA153*(1-VLOOKUP(AF153,Discount[],3,0)),2) -> 533.06 | AE153: 18380 | AF153: E065
A154: 8718528025277 | B154: Artikel | C154: 8718528025277 | D154: STUKS | E154: WK048XL, 930x2340x38, bwh 899 | F154: FSC® cert. Hardwood | G154: V:RAL7035,vent.sl.,isogl.,solid/FJ,FSC Mix 70% CU-COC 800339 | H154: DEUR | I154: BALKON | J154: BALKON | K154: BS | L154: 048 | O154: Inventory | P154: FSCHW | Q154: TRUE | S154: RAL 7035 | T154: 2340 | U154: 930 | V154: 38 | X154: TRUE | Y154: FALSE | Z154: FALSE | AA154: 533.06 | AB154: 645 | AC154: =ROUND(AA154*(1-VLOOKUP(AF154,Discount[],3,0)),2) -> 533.06 | AE154: 18380 | AF154: E065
A155: 8718528220849 | B155: Artikel | C155: 8718528220849 | D155: STUKS | E155: WK048XL, 930x2340x38, bwh 899 | F155: FSC® cert. Hardwood NON-KOMO | G155: V:RAL7035,vent.sl.,isogl.,solid/FJ,FSC Mix 70% CU-COC 800339 | H155: DEUR | I155: BALKON | J155: BALKON | K155: BS | L155: 048 | O155: Inventory | P155: FSCHW | Q155: TRUE | S155: RAL 7035 | T155: 2340 | U155: 930 | V155: 38 | X155: TRUE | Y155: FALSE | Z155: FALSE | AA155: 533.06 | AB155: 645 | AC155: =ROUND(AA155*(1-VLOOKUP(AF155,Discount[],3,0)),2) -> 533.06 | AE155: 18380 | AF155: E065
A156: 8718528028926 | B156: Artikel | C156: 8718528028926 | D156: STUKS | E156: HR++ Top i+ 33.1*-13-4 gehard | F156: Argon u=1,2 WK 042 780x2015 | H156: GLAS | J156: BALKON | K156: BS | L156: 042 | M156: BLANK | N156: ISO VEILIGHEIDSGLAS | O156: Inventory | Q156: FALSE | T156: 0 | U156: 0 | V156: 0 | X156: FALSE | Y156: FALSE | Z156: FALSE | AA156: 242.98 | AB156: 294 | AC156: =ROUND(AA156*(1-VLOOKUP(AF156,Discount[],3,0)),2) -> 242.98 | AE156: 19430 | AF156: P104
A157: 8718528028933 | B157: Artikel | C157: 8718528028933 | D157: STUKS | E157: HR++ Top i+ 33.1*-13-4 gehard | F157: Argon u=1,2 WK 042 780x2115 | H157: GLAS | J157: BALKON | K157: BS | L157: 042 | M157: BLANK | N157: ISO VEILIGHEIDSGLAS | O157: Inventory | Q157: FALSE | T157: 0 | U157: 0 | V157: 0 | X157: FALSE | Y157: FALSE | Z157: FALSE | AA157: 242.98 | AB157: 294 | AC157: =ROUND(AA157*(1-VLOOKUP(AF157,Discount[],3,0)),2) -> 242.98 | AE157: 19430 | AF157: P104
A158: 8718528028940 | B158: Artikel | C158: 8718528028940 | D158: STUKS | E158: HR++ Top i+ 33.1*-13-4 gehard | F158: Argon u=1,2 WK 042 830x2015 | H158: GLAS | J158: BALKON | K158: BS | L158: 042 | M158: BLANK | N158: ISO VEILIGHEIDSGLAS | O158: Inventory | Q158: FALSE | T158: 0 | U158: 0 | V158: 0 | X158: FALSE | Y158: FALSE | Z158: FALSE | AA158: 242.98 | AB158: 294 | AC158: =ROUND(AA158*(1-VLOOKUP(AF158,Discount[],3,0)),2) -> 242.98 | AE158: 19430 | AF158: P104
A159: 8718528028957 | B159: Artikel | C159: 8718528028957 | D159: STUKS | E159: HR++ Top i+ 33.1*-13-4 gehard | F159: Argon u=1,2 WK 042 830x2115 | H159: GLAS | J159: BALKON | K159: BS | L159: 042 | M159: BLANK | N159: ISO VEILIGHEIDSGLAS | O159: Inventory | Q159: FALSE | T159: 0 | U159: 0 | V159: 0 | X159: FALSE | Y159: FALSE | Z159: FALSE | AA159: 242.98 | AB159: 294 | AC159: =ROUND(AA159*(1-VLOOKUP(AF159,Discount[],3,0)),2) -> 242.98 | AE159: 19430 | AF159: P104
A160: 8718528028964 | B160: Artikel | C160: 8718528028964 | D160: STUKS | E160: HR++ Top i+ 33.1*-13-4 gehard | F160: Argon u=1,2 WK 042 880x2015 | H160: GLAS | J160: BALKON | K160: BS | L160: 042 | M160: BLANK | N160: ISO VEILIGHEIDSGLAS | O160: Inventory | Q160: FALSE | T160: 0 | U160: 0 | V160: 0 | X160: FALSE | Y160: FALSE | Z160: FALSE | AA160: 242.98 | AB160: 294 | AC160: =ROUND(AA160*(1-VLOOKUP(AF160,Discount[],3,0)),2) -> 242.98 | AE160: 19430 | AF160: P104
A161: 8718528028971 | B161: Artikel | C161: 8718528028971 | D161: STUKS | E161: HR++ Top i+ 33.1*-13-4 gehard | F161: Argon u=1,2 WK 042 880x2115 | H161: GLAS | J161: BALKON | K161: BS | L161: 042 | M161: BLANK | N161: ISO VEILIGHEIDSGLAS | O161: Inventory | Q161: FALSE | T161: 0 | U161: 0 | V161: 0 | X161: FALSE | Y161: FALSE | Z161: FALSE | AA161: 242.98 | AB161: 294 | AC161: =ROUND(AA161*(1-VLOOKUP(AF161,Discount[],3,0)),2) -> 242.98 | AE161: 19430 | AF161: P104
A162: 8718528028988 | B162: Artikel | C162: 8718528028988 | D162: STUKS | E162: HR++ Top i+ 33.1*-13-4 gehard | F162: Argon u=1,2 WK 042 930x2015 | H162: GLAS | J162: BALKON | K162: BS | L162: 042 | M162: BLANK | N162: ISO VEILIGHEIDSGLAS | O162: Inventory | Q162: FALSE | T162: 0 | U162: 0 | V162: 0 | X162: FALSE | Y162: FALSE | Z162: FALSE | AA162: 242.98 | AB162: 294 | AC162: =ROUND(AA162*(1-VLOOKUP(AF162,Discount[],3,0)),2) -> 242.98 | AE162: 19430 | AF162: P104
A163: 8718528028995 | B163: Artikel | C163: 8718528028995 | D163: STUKS | E163: HR++ Top i+ 33.1*-13-4 gehard | F163: Argon u=1,2 WK 042 930x2115 | H163: GLAS | J163: BALKON | K163: BS | L163: 042 | M163: BLANK | N163: ISO VEILIGHEIDSGLAS | O163: Inventory | Q163: FALSE | T163: 0 | U163: 0 | V163: 0 | X163: FALSE | Y163: FALSE | Z163: FALSE | AA163: 242.98 | AB163: 294 | AC163: =ROUND(AA163*(1-VLOOKUP(AF163,Discount[],3,0)),2) -> 242.98 | AE163: 19430 | AF163: P104
A164: 8718528157466 | B164: Artikel | C164: 8718528157466 | D164: STUKS | E164: HR++ Top i+ 33.1*-13-4 gehard | F164: Argon u=1,2 WK 042 630x2015 | H164: GLAS | J164: BALKON | K164: BS | L164: 042 | M164: BLANK | N164: ISO VEILIGHEIDSGLAS | O164: Inventory | Q164: FALSE | T164: 0 | U164: 0 | V164: 0 | X164: FALSE | Y164: FALSE | Z164: FALSE | AA164: 242.98 | AB164: 294 | AC164: =ROUND(AA164*(1-VLOOKUP(AF164,Discount[],3,0)),2) -> 242.98 | AE164: 19430 | AF164: P104
A165: 8718528157473 | B165: Artikel | C165: 8718528157473 | D165: STUKS | E165: HR++ Top i+ 33.1*-13-4 gehard | F165: Argon u=1,2 WK 042 630x2115 | H165: GLAS | J165: BALKON | K165: BS | L165: 042 | M165: BLANK | N165: ISO VEILIGHEIDSGLAS | O165: Inventory | Q165: FALSE | T165: 0 | U165: 0 | V165: 0 | X165: FALSE | Y165: FALSE | Z165: FALSE | AA165: 242.98 | AB165: 294 | AC165: =ROUND(AA165*(1-VLOOKUP(AF165,Discount[],3,0)),2) -> 242.98 | AE165: 19430 | AF165: P104
A166: 8718528157480 | B166: Artikel | C166: 8718528157480 | D166: STUKS | E166: HR++ Top i+ 33.1*-13-4 gehard | F166: Argon u=1,2 WK 042 680x2015 | H166: GLAS | J166: BALKON | K166: BS | L166: 042 | M166: BLANK | N166: ISO VEILIGHEIDSGLAS | O166: Inventory | Q166: FALSE | T166: 0 | U166: 0 | V166: 0 | X166: FALSE | Y166: FALSE | Z166: FALSE | AA166: 242.98 | AB166: 294 | AC166: =ROUND(AA166*(1-VLOOKUP(AF166,Discount[],3,0)),2) -> 242.98 | AE166: 19430 | AF166: P104
A167: 8718528157497 | B167: Artikel | C167: 8718528157497 | D167: STUKS | E167: HR++ Top i+ 33.1*-13-4 gehard | F167: Argon u=1,2 WK 042 680x2115 | H167: GLAS | J167: BALKON | K167: BS | L167: 042 | M167: BLANK | N167: ISO VEILIGHEIDSGLAS | O167: Inventory | Q167: FALSE | T167: 0 | U167: 0 | V167: 0 | X167: FALSE | Y167: FALSE | Z167: FALSE | AA167: 242.98 | AB167: 294 | AC167: =ROUND(AA167*(1-VLOOKUP(AF167,Discount[],3,0)),2) -> 242.98 | AE167: 19430 | AF167: P104
A168: 8718528157503 | B168: Artikel | C168: 8718528157503 | D168: STUKS | E168: HR++ Top i+ 33.1*-13-4 gehard | F168: Argon u=1,2 WK 042 730x2015 | H168: GLAS | J168: BALKON | K168: BS | L168: 042 | M168: BLANK | N168: ISO VEILIGHEIDSGLAS | O168: Inventory | Q168: FALSE | T168: 0 | U168: 0 | V168: 0 | X168: FALSE | Y168: FALSE | Z168: FALSE | AA168: 242.98 | AB168: 294 | AC168: =ROUND(AA168*(1-VLOOKUP(AF168,Discount[],3,0)),2) -> 242.98 | AE168: 19430 | AF168: P104
A169: 8718528157510 | B169: Artikel | C169: 8718528157510 | D169: STUKS | E169: HR++ Top i+ 33.1*-13-4 gehard | F169: Argon u=1,2 WK 042 730x2115 | H169: GLAS | J169: BALKON | K169: BS | L169: 042 | M169: BLANK | N169: ISO VEILIGHEIDSGLAS | O169: Inventory | Q169: FALSE | T169: 0 | U169: 0 | V169: 0 | X169: FALSE | Y169: FALSE | Z169: FALSE | AA169: 242.98 | AB169: 294 | AC169: =ROUND(AA169*(1-VLOOKUP(AF169,Discount[],3,0)),2) -> 242.98 | AE169: 19430 | AF169: P104
A170: 8718528029039 | B170: Artikel | C170: 8718528029039 | D170: STUKS | E170: HR++ Top i+ 33.1*-13-4 gehard | F170: Argon u=1,2 WK 043 730x2015 | H170: GLAS | J170: BALKON | K170: BS | L170: 043 | M170: BLANK | N170: ISO VEILIGHEIDSGLAS | O170: Inventory | Q170: FALSE | T170: 0 | U170: 0 | V170: 0 | X170: FALSE | Y170: FALSE | Z170: FALSE | AA170: 234.71 | AB170: 284 | AC170: =ROUND(AA170*(1-VLOOKUP(AF170,Discount[],3,0)),2) -> 234.71 | AE170: 19440 | AF170: P104
A171: 8718528029046 | B171: Artikel | C171: 8718528029046 | D171: STUKS | E171: HR++ Top i+ 33.1*-13-4 gehard | F171: Argon u=1,2 WK 043 730x2115 | H171: GLAS | J171: BALKON | K171: BS | L171: 043 | M171: BLANK | N171: ISO VEILIGHEIDSGLAS | O171: Inventory | Q171: FALSE | T171: 0 | U171: 0 | V171: 0 | X171: FALSE | Y171: FALSE | Z171: FALSE | AA171: 234.71 | AB171: 284 | AC171: =ROUND(AA171*(1-VLOOKUP(AF171,Discount[],3,0)),2) -> 234.71 | AE171: 19440 | AF171: P104
A172: 8718528029053 | B172: Artikel | C172: 8718528029053 | D172: STUKS | E172: HR++ Top i+ 33.1*-13-4 gehard | F172: Argon u=1,2 WK 043 780x2015 | H172: GLAS | J172: BALKON | K172: BS | L172: 043 | M172: BLANK | N172: ISO VEILIGHEIDSGLAS | O172: Inventory | Q172: FALSE | T172: 0 | U172: 0 | V172: 0 | X172: FALSE | Y172: FALSE | Z172: FALSE | AA172: 234.71 | AB172: 284 | AC172: =ROUND(AA172*(1-VLOOKUP(AF172,Discount[],3,0)),2) -> 234.71 | AE172: 19440 | AF172: P104
A173: 8718528029060 | B173: Artikel | C173: 8718528029060 | D173: STUKS | E173: HR++ Top i+ 33.1*-13-4 gehard | F173: Argon u=1,2 WK 043 780x2115 | H173: GLAS | J173: BALKON | K173: BS | L173: 043 | M173: BLANK | N173: ISO VEILIGHEIDSGLAS | O173: Inventory | Q173: FALSE | T173: 0 | U173: 0 | V173: 0 | X173: FALSE | Y173: FALSE | Z173: FALSE | AA173: 234.71 | AB173: 284 | AC173: =ROUND(AA173*(1-VLOOKUP(AF173,Discount[],3,0)),2) -> 234.71 | AE173: 19440 | AF173: P104
A174: 8718528029077 | B174: Artikel | C174: 8718528029077 | D174: STUKS | E174: HR++ Top i+ 33.1*-13-4 gehard | F174: Argon u=1,2 WK 043 830x2015 | H174: GLAS | J174: BALKON | K174: BS | L174: 043 | M174: BLANK | N174: ISO VEILIGHEIDSGLAS | O174: Inventory | Q174: FALSE | T174: 0 | U174: 0 | V174: 0 | X174: FALSE | Y174: FALSE | Z174: FALSE | AA174: 234.71 | AB174: 284 | AC174: =ROUND(AA174*(1-VLOOKUP(AF174,Discount[],3,0)),2) -> 234.71 | AE174: 19440 | AF174: P104
A175: 8718528029084 | B175: Artikel | C175: 8718528029084 | D175: STUKS | E175: HR++ Top i+ 33.1*-13-4 gehard | F175: Argon u=1,2 WK 043 830x2115 | H175: GLAS | J175: BALKON | K175: BS | L175: 043 | M175: BLANK | N175: ISO VEILIGHEIDSGLAS | O175: Inventory | Q175: FALSE | T175: 0 | U175: 0 | V175: 0 | X175: FALSE | Y175: FALSE | Z175: FALSE | AA175: 234.71 | AB175: 284 | AC175: =ROUND(AA175*(1-VLOOKUP(AF175,Discount[],3,0)),2) -> 234.71 | AE175: 19440 | AF175: P104
A176: 8718528029091 | B176: Artikel | C176: 8718528029091 | D176: STUKS | E176: HR++ Top i+ 33.1*-13-4 gehard | F176: Argon u=1,2 WK 043 880x2015 | H176: GLAS | J176: BALKON | K176: BS | L176: 043 | M176: BLANK | N176: ISO VEILIGHEIDSGLAS | O176: Inventory | Q176: FALSE | T176: 0 | U176: 0 | V176: 0 | X176: FALSE | Y176: FALSE | Z176: FALSE | AA176: 234.71 | AB176: 284 | AC176: =ROUND(AA176*(1-VLOOKUP(AF176,Discount[],3,0)),2) -> 234.71 | AE176: 19440 | AF176: P104
A177: 8718528029107 | B177: Artikel | C177: 8718528029107 | D177: STUKS | E177: HR++ Top i+ 33.1*-13-4 gehard | F177: Argon u=1,2 WK 043 880x2115 | H177: GLAS | J177: BALKON | K177: BS | L177: 043 | M177: BLANK | N177: ISO VEILIGHEIDSGLAS | O177: Inventory | Q177: FALSE | T177: 0 | U177: 0 | V177: 0 | X177: FALSE | Y177: FALSE | Z177: FALSE | AA177: 234.71 | AB177: 284 | AC177: =ROUND(AA177*(1-VLOOKUP(AF177,Discount[],3,0)),2) -> 234.71 | AE177: 19440 | AF177: P104
A178: 8718528029114 | B178: Artikel | C178: 8718528029114 | D178: STUKS | E178: HR++ Top i+ 33.1*-13-4 gehard | F178: Argon u=1,2 WK 043 930x2015 | H178: GLAS | J178: BALKON | K178: BS | L178: 043 | M178: BLANK | N178: ISO VEILIGHEIDSGLAS | O178: Inventory | Q178: FALSE | T178: 0 | U178: 0 | V178: 0 | X178: FALSE | Y178: FALSE | Z178: FALSE | AA178: 234.71 | AB178: 284 | AC178: =ROUND(AA178*(1-VLOOKUP(AF178,Discount[],3,0)),2) -> 234.71 | AE178: 19440 | AF178: P104
A179: 8718528029121 | B179: Artikel | C179: 8718528029121 | D179: STUKS | E179: HR++ Top i+ 33.1*-13-4 gehard | F179: Argon u=1,2 WK 043 930x2115 | H179: GLAS | J179: BALKON | K179: BS | L179: 044 | M179: BLANK | N179: ISO VEILIGHEIDSGLAS | O179: Inventory | Q179: FALSE | T179: 0 | U179: 0 | V179: 0 | X179: FALSE | Y179: FALSE | Z179: FALSE | AA179: 224.79 | AB179: 272 | AC179: =ROUND(AA179*(1-VLOOKUP(AF179,Discount[],3,0)),2) -> 224.79 | AE179: 19450 | AF179: P104
A180: 8718528029169 | B180: Artikel | C180: 8718528029169 | D180: STUKS | E180: HR++ Top i+ 33.1*-13-4 gehard | F180: Argon u=1,2 WK 044 780x2015 | H180: GLAS | J180: BALKON | K180: BS | L180: 044 | M180: BLANK | N180: ISO VEILIGHEIDSGLAS | O180: Inventory | Q180: FALSE | T180: 0 | U180: 0 | V180: 0 | X180: FALSE | Y180: FALSE | Z180: FALSE | AA180: 224.79 | AB180: 272 | AC180: =ROUND(AA180*(1-VLOOKUP(AF180,Discount[],3,0)),2) -> 224.79 | AE180: 19450 | AF180: P104
A181: 8718528029176 | B181: Artikel | C181: 8718528029176 | D181: STUKS | E181: HR++ Top i+ 33.1*-13-4 gehard | F181: Argon u=1,2 WK 044 780x2115 | H181: GLAS | J181: BALKON | K181: BS | L181: 044 | M181: BLANK | N181: ISO VEILIGHEIDSGLAS | O181: Inventory | Q181: FALSE | T181: 0 | U181: 0 | V181: 0 | X181: FALSE | Y181: FALSE | Z181: FALSE | AA181: 224.79 | AB181: 272 | AC181: =ROUND(AA181*(1-VLOOKUP(AF181,Discount[],3,0)),2) -> 224.79 | AE181: 19450 | AF181: P104
A182: 8718528029183 | B182: Artikel | C182: 8718528029183 | D182: STUKS | E182: HR++ Top i+ 33.1*-13-4 gehard | F182: Argon u=1,2 WK 044 830x2015 | H182: GLAS | J182: BALKON | K182: BS | L182: 044 | M182: BLANK | N182: ISO VEILIGHEIDSGLAS | O182: Inventory | Q182: FALSE | T182: 0 | U182: 0 | V182: 0 | X182: FALSE | Y182: FALSE | Z182: FALSE | AA182: 224.79 | AB182: 272 | AC182: =ROUND(AA182*(1-VLOOKUP(AF182,Discount[],3,0)),2) -> 224.79 | AE182: 19450 | AF182: P104
A183: 8718528029190 | B183: Artikel | C183: 8718528029190 | D183: STUKS | E183: HR++ Top i+ 33.1*-13-4 gehard | F183: Argon u=1,2 WK 044 830x2115 | H183: GLAS | J183: BALKON | K183: BS | L183: 044 | M183: BLANK | N183: ISO VEILIGHEIDSGLAS | O183: Inventory | Q183: FALSE | T183: 0 | U183: 0 | V183: 0 | X183: FALSE | Y183: FALSE | Z183: FALSE | AA183: 224.79 | AB183: 272 | AC183: =ROUND(AA183*(1-VLOOKUP(AF183,Discount[],3,0)),2) -> 224.79 | AE183: 19450 | AF183: P104
A184: 8718528029206 | B184: Artikel | C184: 8718528029206 | D184: STUKS | E184: HR++ Top i+ 33.1*-13-4 gehard | F184: Argon u=1,2 Wk 044 880x2015 | H184: GLAS | J184: BALKON | K184: BS | L184: 044 | M184: BLANK | N184: ISO VEILIGHEIDSGLAS | O184: Inventory | Q184: FALSE | T184: 0 | U184: 0 | V184: 0 | X184: FALSE | Y184: FALSE | Z184: FALSE | AA184: 224.79 | AB184: 272 | AC184: =ROUND(AA184*(1-VLOOKUP(AF184,Discount[],3,0)),2) -> 224.79 | AE184: 19450 | AF184: P104
A185: 8718528029213 | B185: Artikel | C185: 8718528029213 | D185: STUKS | E185: HR++ Top i+ 33.1*-13-4 gehard | F185: Argon u=1,2 880x2115 | G185: WK044 / WK8041 / WK8141 | H185: GLAS | J185: BALKON | K185: BS | L185: 044 | M185: BLANK | N185: ISO VEILIGHEIDSGLAS | O185: Inventory | Q185: FALSE | T185: 0 | U185: 0 | V185: 0 | X185: FALSE | Y185: FALSE | Z185: FALSE | AA185: 224.79 | AB185: 272 | AC185: =ROUND(AA185*(1-VLOOKUP(AF185,Discount[],3,0)),2) -> 224.79 | AE185: 19450 | AF185: P104
A186: 8718528029220 | B186: Artikel | C186: 8718528029220 | D186: STUKS | E186: HR++ Top i+ 33.1*-13-4 gehard | F186: Argon u=1,2 WK 044 930x2015 | H186: GLAS | J186: BALKON | K186: BS | L186: 044 | M186: BLANK | N186: ISO VEILIGHEIDSGLAS | O186: Inventory | Q186: FALSE | T186: 0 | U186: 0 | V186: 0 | X186: FALSE | Y186: FALSE | Z186: FALSE | AA186: 224.79 | AB186: 272 | AC186: =ROUND(AA186*(1-VLOOKUP(AF186,Discount[],3,0)),2) -> 224.79 | AE186: 19450 | AF186: P104
A187: 8718528029237 | B187: Artikel | C187: 8718528029237 | D187: STUKS | E187: HR++ Top i+ 33.1*-13-4 gehard | F187: Argon u=1,2 930x2115 | G187: WK044 / WK8041 / WK8141 | H187: GLAS | J187: BALKON | K187: BS | L187: 044 | M187: BLANK | N187: ISO VEILIGHEIDSGLAS | O187: Inventory | Q187: FALSE | T187: 0 | U187: 0 | V187: 0 | X187: FALSE | Y187: FALSE | Z187: FALSE | AA187: 224.79 | AB187: 272 | AC187: =ROUND(AA187*(1-VLOOKUP(AF187,Discount[],3,0)),2) -> 224.79 | AE187: 19450 | AF187: P104
A188: 8718528029275 | B188: Artikel | C188: 8718528029275 | D188: STUKS | E188: HR++ Top i+ 33.1*-13-4 gehard | F188: Argon u=1,2 WK 046 780x2015 | H188: GLAS | J188: BALKON | K188: BS | L188: 046 | M188: BLANK | N188: ISO VEILIGHEIDSGLAS | O188: Inventory | Q188: FALSE | T188: 0 | U188: 0 | V188: 0 | X188: FALSE | Y188: FALSE | Z188: FALSE | AA188: 203.31 | AB188: 246 | AC188: =ROUND(AA188*(1-VLOOKUP(AF188,Discount[],3,0)),2) -> 203.31 | AE188: 19460 | AF188: P104
A189: 8718528029282 | B189: Artikel | C189: 8718528029282 | D189: STUKS | E189: HR++ Top i+ 33.1*-13-4 gehard | F189: Argon u=1,2 WK 046 780x2115 | H189: GLAS | J189: BALKON | K189: BS | L189: 046 | M189: BLANK | N189: ISO VEILIGHEIDSGLAS | O189: Inventory | Q189: FALSE | T189: 0 | U189: 0 | V189: 0 | X189: FALSE | Y189: FALSE | Z189: FALSE | AA189: 203.31 | AB189: 246 | AC189: =ROUND(AA189*(1-VLOOKUP(AF189,Discount[],3,0)),2) -> 203.31 | AE189: 19460 | AF189: P104
A190: 8718528029299 | B190: Artikel | C190: 8718528029299 | D190: STUKS | E190: HR++ Top i+ 33.1*-13-4 gehard | F190: Argon u=1,2 Wk 046 830x2015 | H190: GLAS | J190: BALKON | K190: BS | L190: 046 | M190: BLANK | N190: ISO VEILIGHEIDSGLAS | O190: Inventory | Q190: FALSE | T190: 0 | U190: 0 | V190: 0 | X190: FALSE | Y190: FALSE | Z190: FALSE | AA190: 203.31 | AB190: 246 | AC190: =ROUND(AA190*(1-VLOOKUP(AF190,Discount[],3,0)),2) -> 203.31 | AE190: 19460 | AF190: P104
A191: 8718528029305 | B191: Artikel | C191: 8718528029305 | D191: STUKS | E191: HR++ Top i+ 33.1*-13-4 gehard | F191: Argon u=1,2 WK 046 830x2115 | H191: GLAS | J191: BALKON | K191: BS | L191: 046 | M191: BLANK | N191: ISO VEILIGHEIDSGLAS | O191: Inventory | Q191: FALSE | T191: 0 | U191: 0 | V191: 0 | X191: FALSE | Y191: FALSE | Z191: FALSE | AA191: 203.31 | AB191: 246 | AC191: =ROUND(AA191*(1-VLOOKUP(AF191,Discount[],3,0)),2) -> 203.31 | AE191: 19460 | AF191: P104
A192: 8718528029312 | B192: Artikel | C192: 8718528029312 | D192: STUKS | E192: HR++ Top i+ 33.1*-13-4 gehard | F192: Argon u=1,2 WK 046 880x2015 | H192: GLAS | J192: BALKON | K192: BS | L192: 046 | M192: BLANK | N192: ISO VEILIGHEIDSGLAS | O192: Inventory | Q192: FALSE | T192: 0 | U192: 0 | V192: 0 | X192: FALSE | Y192: FALSE | Z192: FALSE | AA192: 203.31 | AB192: 246 | AC192: =ROUND(AA192*(1-VLOOKUP(AF192,Discount[],3,0)),2) -> 203.31 | AE192: 19460 | AF192: P104
A193: 8718528029329 | B193: Artikel | C193: 8718528029329 | D193: STUKS | E193: HR++ Top i+ 33.1*-13-4 gehard | F193: Argon u=1,2 880x2115 | G193: WK046 / WK8061 / WK8161 | H193: GLAS | J193: BALKON | K193: BS | L193: 046 | M193: BLANK | N193: ISO VEILIGHEIDSGLAS | O193: Inventory | Q193: FALSE | T193: 0 | U193: 0 | V193: 0 | X193: FALSE | Y193: FALSE | Z193: FALSE | AA193: 203.31 | AB193: 246 | AC193: =ROUND(AA193*(1-VLOOKUP(AF193,Discount[],3,0)),2) -> 203.31 | AE193: 19460 | AF193: P104
A194: 8718528029336 | B194: Artikel | C194: 8718528029336 | D194: STUKS | E194: HR++ Top i+ 33.1*-13-4 gehard | F194: Argon u=1,2 WK 046 930x2015 | H194: GLAS | J194: BALKON | K194: BS | L194: 046 | M194: BLANK | N194: ISO VEILIGHEIDSGLAS | O194: Inventory | Q194: FALSE | T194: 0 | U194: 0 | V194: 0 | X194: FALSE | Y194: FALSE | Z194: FALSE | AA194: 203.31 | AB194: 246 | AC194: =ROUND(AA194*(1-VLOOKUP(AF194,Discount[],3,0)),2) -> 203.31 | AE194: 19460 | AF194: P104
A195: 8718528029343 | B195: Artikel | C195: 8718528029343 | D195: STUKS | E195: HR++ Top i+ 33.1*-13-4 gehard | F195: Argon u=1,2 930x2115 | G195: WK046 / WK8061 / WK8161 | H195: GLAS | J195: BALKON | K195: BS | L195: 046 | M195: BLANK | N195: ISO VEILIGHEIDSGLAS | O195: Inventory | Q195: FALSE | T195: 0 | U195: 0 | V195: 0 | X195: FALSE | Y195: FALSE | Z195: FALSE | AA195: 203.31 | AB195: 246 | AC195: =ROUND(AA195*(1-VLOOKUP(AF195,Discount[],3,0)),2) -> 203.31 | AE195: 19460 | AF195: P104
A196: 8718528029459 | B196: Artikel | C196: 8718528029459 | D196: STUKS | E196: HR++ 4-14-*4 Top i+ | F196: Argon u=1,2 WK 048 780x2015 | H196: GLAS | J196: BALKON | K196: BS | L196: 048 | M196: BLANK | N196: ISOLATIEGLAS | O196: Inventory | Q196: FALSE | T196: 0 | U196: 0 | V196: 0 | X196: FALSE | Y196: FALSE | Z196: FALSE | AA196: 114.05 | AB196: 138 | AC196: =ROUND(AA196*(1-VLOOKUP(AF196,Discount[],3,0)),2) -> 114.05 | AE196: 19470 | AF196: P104
A197: 8718528029466 | B197: Artikel | C197: 8718528029466 | D197: STUKS | E197: HR++ 4-14-*4 Top i+ | F197: Argon u=1,2 WK048 780x2115 | H197: GLAS | J197: BALKON | K197: BS | L197: 048 | M197: BLANK | N197: ISOLATIEGLAS | O197: Inventory | Q197: FALSE | T197: 0 | U197: 0 | V197: 0 | X197: FALSE | Y197: FALSE | Z197: FALSE | AA197: 114.05 | AB197: 138 | AC197: =ROUND(AA197*(1-VLOOKUP(AF197,Discount[],3,0)),2) -> 114.05 | AE197: 19470 | AF197: P104
A198: 8718528029473 | B198: Artikel | C198: 8718528029473 | D198: STUKS | E198: HR++ 4-14-*4 Top i+ | F198: Argon u=1,2 WK048 830x2015 | H198: GLAS | J198: BALKON | K198: BS | L198: 048 | M198: BLANK | N198: ISOLATIEGLAS | O198: Inventory | Q198: FALSE | T198: 0 | U198: 0 | V198: 0 | X198: FALSE | Y198: FALSE | Z198: FALSE | AA198: 114.05 | AB198: 138 | AC198: =ROUND(AA198*(1-VLOOKUP(AF198,Discount[],3,0)),2) -> 114.05 | AE198: 19470 | AF198: P104
A199: 8718528029480 | B199: Artikel | C199: 8718528029480 | D199: STUKS | E199: HR++ 4-14-*4 Top i+ | F199: Argon u=1,2 WK 048 830x2115 | H199: GLAS | J199: BALKON | K199: BS | L199: 048 | M199: BLANK | N199: ISOLATIEGLAS | O199: Inventory | Q199: FALSE | T199: 0 | U199: 0 | V199: 0 | X199: FALSE | Y199: FALSE | Z199: FALSE | AA199: 114.05 | AB199: 138 | AC199: =ROUND(AA199*(1-VLOOKUP(AF199,Discount[],3,0)),2) -> 114.05 | AE199: 19470 | AF199: P104
A200: 8718528029497 | B200: Artikel | C200: 8718528029497 | D200: STUKS | E200: HR++ 4-14-*4 Top i+ | F200: Argon u=1,2 WK 048 880x2015 | H200: GLAS | J200: BALKON | K200: BS | L200: 048 | M200: BLANK | N200: ISOLATIEGLAS | O200: Inventory | Q200: FALSE | T200: 0 | U200: 0 | V200: 0 | X200: FALSE | Y200: FALSE | Z200: FALSE | AA200: 114.05 | AB200: 138 | AC200: =ROUND(AA200*(1-VLOOKUP(AF200,Discount[],3,0)),2) -> 114.05 | AE200: 19470 | AF200: P104
... 2050 more rows
